Publisher Label,Publisher URI,"Supplier","Net Amount (£)","Organisational Unit","Merchant Category Code","Purpose","Payment Date"
"Wolverhampton City Council","http://opendatacommunities.org/id/metropolitan-district-council/wolverhampton","ARGOS DIRECT","65.78","MAST 6 - Priory Green","5310","Grant Payments","12/31/2015"
"Wolverhampton City Council","http://opendatacommunities.org/id/metropolitan-district-council/wolverhampton","OFFICE DEPOT","0.81","Upper Pendeford Farm Childrens Home","5111","Stationery","12/31/2015"
"Wolverhampton City Council","http://opendatacommunities.org/id/metropolitan-district-council/wolverhampton","LIDL UK","14.85","Children & Family Contact Services","5411","Provisions (Not for resale)","12/31/2015"
"Wolverhampton City Council","http://opendatacommunities.org/id/metropolitan-district-council/wolverhampton","EE & T-MOBILE","99.3","Civic Halls Non Direct Management A/C","4814","Comms - Telephone Call charges","12/31/2015"
"Wolverhampton City Council","http://opendatacommunities.org/id/metropolitan-district-council/wolverhampton","ARGOS RETAIL GROUP","28.32","MAST 6 - Priory Green","5310","Grant Payments","12/31/2015"
"Wolverhampton City Council","http://opendatacommunities.org/id/metropolitan-district-council/wolverhampton","TRAVELODGE","30","Emergency Duty Team","3615","Services - Supplies & Services to users","12/31/2015"
"Wolverhampton City Council","http://opendatacommunities.org/id/metropolitan-district-council/wolverhampton","WWW.LIMBOPRODUCTS.CO.U","13.75","Duke Street Bungalows","5047","Provisions (Not for resale)","12/31/2015"
"Wolverhampton City Council","http://opendatacommunities.org/id/metropolitan-district-council/wolverhampton","CUMMINGS BROTHERS LOCK","12.5","Ernest Bold Court","7399","Services - Supplies & Services to users","12/31/2015"
"Wolverhampton City Council","http://opendatacommunities.org/id/metropolitan-district-council/wolverhampton","JOHNSTONES DEC CENTRE","25.77","Caretakers Community Centre","5231","Materials","12/31/2015"
"Wolverhampton City Council","http://opendatacommunities.org/id/metropolitan-district-council/wolverhampton","NETWORK WEST MIDLANDS","53","MAST 7 - Berrybrook","9399","Services - Fees and Charges","12/31/2015"
"Wolverhampton City Council","http://opendatacommunities.org/id/metropolitan-district-council/wolverhampton","Amazon UK Marketplace","17.32","Independent Living Service","5942","Computing - Purchase of Hardware","12/30/2015"
"Wolverhampton City Council","http://opendatacommunities.org/id/metropolitan-district-council/wolverhampton","Virgintrains.co.uk","97.1","Private Sector Housing","4112","Public Transport","12/30/2015"
"Wolverhampton City Council","http://opendatacommunities.org/id/metropolitan-district-council/wolverhampton","ASDA HOME SHOPPING","0.1","Ernest Bold Court","5411","Provisions (Not for resale)","12/30/2015"
"Wolverhampton City Council","http://opendatacommunities.org/id/metropolitan-district-council/wolverhampton","WWW.ABILITYSUPERSTORE.","49.99","Central Baths","5999","Equipment - Purchase","12/30/2015"
"Wolverhampton City Council","http://opendatacommunities.org/id/metropolitan-district-council/wolverhampton","COMBINED COURT","10","Legal Services","9222","Services - Fees and Charges","12/30/2015"
"Wolverhampton City Council","http://opendatacommunities.org/id/metropolitan-district-council/wolverhampton","CURRYS S/S","316.65","LAC Transitions Team","5732","Independant Living Allowance","12/30/2015"
"Wolverhampton City Council","http://opendatacommunities.org/id/metropolitan-district-council/wolverhampton","123-REG.CO.UK","13.96","City Direct","4816","Computing - Purchase of Software","12/30/2015"
"Wolverhampton City Council","http://opendatacommunities.org/id/metropolitan-district-council/wolverhampton","OFFICE DEPOT","63.34","Benefits","5111","Stationery","12/30/2015"
"Wolverhampton City Council","http://opendatacommunities.org/id/metropolitan-district-council/wolverhampton","WM MORRISONS","119.48","Upper Pendeford Farm Childrens Home","5411","Provisions (Not for resale)","12/30/2015"
"Wolverhampton City Council","http://opendatacommunities.org/id/metropolitan-district-council/wolverhampton","NOVOTEL LONDON WATERLO","107.5","Delivery & OCE Development","7011","Accommodation Costs","12/29/2015"
"Wolverhampton City Council","http://opendatacommunities.org/id/metropolitan-district-council/wolverhampton","ASDA HOME SHOPPING","66.63","Ernest Bold Court","5411","Provisions (Not for resale)","12/29/2015"
"Wolverhampton City Council","http://opendatacommunities.org/id/metropolitan-district-council/wolverhampton","FACEBOOK AKD5786B92","13.53","Communications & Marketing - General","7311","Marketing \ Non-staff advertising","12/29/2015"
"Wolverhampton City Council","http://opendatacommunities.org/id/metropolitan-district-council/wolverhampton","FACEBOOK 9KD5786B92","586.69","Communications & Marketing - General","7311","Marketing \ Non-staff advertising","12/29/2015"
"Wolverhampton City Council","http://opendatacommunities.org/id/metropolitan-district-council/wolverhampton","TESCO STORES (6741)","3.36","Bilston Museum","5411","Materials for resale","12/29/2015"
"Wolverhampton City Council","http://opendatacommunities.org/id/metropolitan-district-council/wolverhampton","NOVOTEL LONDON WATERLO","107.5","Members Expenses","7011","Accommodation Costs","12/28/2015"
"Wolverhampton City Council","http://opendatacommunities.org/id/metropolitan-district-council/wolverhampton","RAYNOR STORES","19.96","Meals on Wheels","5251","Catering","12/28/2015"
"Wolverhampton City Council","http://opendatacommunities.org/id/metropolitan-district-council/wolverhampton","MAILCHIMP","34.09","City Direct","7399","Equipment - Purchase","12/28/2015"
"Wolverhampton City Council","http://opendatacommunities.org/id/metropolitan-district-council/wolverhampton","ALDI","1.24","Meals on Wheels","5411","Catering","12/28/2015"
"Wolverhampton City Council","http://opendatacommunities.org/id/metropolitan-district-council/wolverhampton","OFFICE DEPOT","23.04","Assessment Team (West)","5111","Stationery","12/28/2015"
"Wolverhampton City Council","http://opendatacommunities.org/id/metropolitan-district-council/wolverhampton","OFFICE DEPOT","7.59","Bert Williams Leisure Centre","5111","Stationery","12/28/2015"
"Wolverhampton City Council","http://opendatacommunities.org/id/metropolitan-district-council/wolverhampton","ASDA SUPERSTORE","4.2","Meals on Wheels","5411","Catering","12/28/2015"
"Wolverhampton City Council","http://opendatacommunities.org/id/metropolitan-district-council/wolverhampton","ARGOS DIRECT","-181.91","CIN - Bilston CC2 - Area 2","5310","Equipment - Purchase","12/28/2015"
"Wolverhampton City Council","http://opendatacommunities.org/id/metropolitan-district-council/wolverhampton","DUKE & SUNS HOTELS","75","Fostering Team & Allowances","7011","Accommodation Costs","12/24/2015"
"Wolverhampton City Council","http://opendatacommunities.org/id/metropolitan-district-council/wolverhampton","Virgintrains.co.uk","155","Delivery & OCE Development","4112","Public Transport","12/24/2015"
"Wolverhampton City Council","http://opendatacommunities.org/id/metropolitan-district-council/wolverhampton","ASDA SUPERSTORE","10.68","Meals on Wheels","5411","Catering","12/24/2015"
"Wolverhampton City Council","http://opendatacommunities.org/id/metropolitan-district-council/wolverhampton","LOYD WEDNESFIELD WOLVE","50","Duke Street Bungalows","6011","Financial Assistance In Exceptional Circ","12/24/2015"
"Wolverhampton City Council","http://opendatacommunities.org/id/metropolitan-district-council/wolverhampton","GRO HM PASSPORT OFFICE","-23.4","Legal Services","9399","Services - Fees and Charges","12/24/2015"
"Wolverhampton City Council","http://opendatacommunities.org/id/metropolitan-district-council/wolverhampton","LOYD MORR WILLENHALL","250","Priory Green - CIN SWU S17","6011","Financial Assistance In Exceptional Circ","12/24/2015"
"Wolverhampton City Council","http://opendatacommunities.org/id/metropolitan-district-council/wolverhampton","SAINSBURYS LOC (4384)","13.01","Windmill Lane - Respite Home","5411","Provisions (Not for resale)","12/24/2015"
"Wolverhampton City Council","http://opendatacommunities.org/id/metropolitan-district-council/wolverhampton","POST OFFICE COUNTER","6.45","Adoption and Residence Team & Allowances","9402","Comms - Postage","12/24/2015"
"Wolverhampton City Council","http://opendatacommunities.org/id/metropolitan-district-council/wolverhampton","Amazon EU","46.97","Aldersley Leisure Village","5969","Equipment - Purchase","12/24/2015"
"Wolverhampton City Council","http://opendatacommunities.org/id/metropolitan-district-council/wolverhampton","SOHO COMMERCIAL","730.75","Civic Hall Administration Overhead Acct","5085","Equipment - Purchase","12/24/2015"
"Wolverhampton City Council","http://opendatacommunities.org/id/metropolitan-district-council/wolverhampton","B & Q","13.19","Caretakers Community Centre","5211","Equipment - Purchase","12/24/2015"
"Wolverhampton City Council","http://opendatacommunities.org/id/metropolitan-district-council/wolverhampton","STAFFORDSHIRE COUNTY C","-25","Legal Services","9399","Services - Fees and Charges","12/24/2015"
"Wolverhampton City Council","http://opendatacommunities.org/id/metropolitan-district-council/wolverhampton","B & Q","7.9","Caretakers Community Centre","5211","Materials","12/24/2015"
"Wolverhampton City Council","http://opendatacommunities.org/id/metropolitan-district-council/wolverhampton","POST OFFICE COUNTER","27.55","Adoption and Residence Team & Allowances","9402","Comms - Postage","12/24/2015"
"Wolverhampton City Council","http://opendatacommunities.org/id/metropolitan-district-council/wolverhampton","POUNDLAND LTD 1463","15.83","Global Budgets","5310","Stationery","12/23/2015"
"Wolverhampton City Council","http://opendatacommunities.org/id/metropolitan-district-council/wolverhampton","SAINSBURYS 2040","17.85","Duke Street Bungalows","5411","Provisions (Not for resale)","12/23/2015"
"Wolverhampton City Council","http://opendatacommunities.org/id/metropolitan-district-council/wolverhampton","GRO HM PASSPORT OFFICE","23.4","Legal Services","9399","Services - Fees and Charges","12/23/2015"
"Wolverhampton City Council","http://opendatacommunities.org/id/metropolitan-district-council/wolverhampton","Amazon UK Marketplace","10.36","Global Budgets","5942","Stationery","12/23/2015"
"Wolverhampton City Council","http://opendatacommunities.org/id/metropolitan-district-council/wolverhampton","COMBINED COURT","555","Legal Services","9222","Services - Fees and Charges","12/23/2015"
"Wolverhampton City Council","http://opendatacommunities.org/id/metropolitan-district-council/wolverhampton","DIRECTSPORTS-ESHOP","142.29","Aldersley Leisure Village","5941","Equipment - Purchase","12/23/2015"
"Wolverhampton City Council","http://opendatacommunities.org/id/metropolitan-district-council/wolverhampton","OFFICE DEPOT","78","Avenues - CIN SWU S17","5111","Stationery","12/23/2015"
"Wolverhampton City Council","http://opendatacommunities.org/id/metropolitan-district-council/wolverhampton","SAINSBURYS 2040","13.45","Ernest Bold Court","5411","Provisions (Not for resale)","12/23/2015"
"Wolverhampton City Council","http://opendatacommunities.org/id/metropolitan-district-council/wolverhampton","ASDA SUPERSTORE","16.2","Swan Bank","5411","Provisions (Not for resale)","12/23/2015"
"Wolverhampton City Council","http://opendatacommunities.org/id/metropolitan-district-council/wolverhampton","POST OFFICE COUNTER","44.76","CIN - Whitmore Reans CC - Area 5","9402","Comms - Postage","12/23/2015"
"Wolverhampton City Council","http://opendatacommunities.org/id/metropolitan-district-council/wolverhampton","Amazon UK Marketplace","14.98","Bilston Museum","5942","Materials","12/23/2015"
"Wolverhampton City Council","http://opendatacommunities.org/id/metropolitan-district-council/wolverhampton","TRAINLINE","58.04","Adoption and Residence Team & Allowances","4112","Public Transport","12/23/2015"
"Wolverhampton City Council","http://opendatacommunities.org/id/metropolitan-district-council/wolverhampton","OFFICE DEPOT","26.88","MAST 8 - Wednesfield","5111","Stationery","12/23/2015"
"Wolverhampton City Council","http://opendatacommunities.org/id/metropolitan-district-council/wolverhampton","WWW.RYMAN.CO.UK","28.87","Legal Services","5943","Stationery","12/23/2015"
"Wolverhampton City Council","http://opendatacommunities.org/id/metropolitan-district-council/wolverhampton","NIJJAR SPRMK LTD 48994","94.75","Ekta Day Centre","5411","Provisions (Not for resale)","12/23/2015"
"Wolverhampton City Council","http://opendatacommunities.org/id/metropolitan-district-council/wolverhampton","WWW.DVLA.GOV.UK","292.5","Commissioning Disabilities","9399","Services - Fees and Charges","12/23/2015"
"Wolverhampton City Council","http://opendatacommunities.org/id/metropolitan-district-council/wolverhampton","WWW.DVLA.GOV.UK","292.5","Commissioning Disabilities","9399","Services - Fees and Charges","12/23/2015"
"Wolverhampton City Council","http://opendatacommunities.org/id/metropolitan-district-council/wolverhampton","ARGOS RETAIL GROUP","257.43","LAC Transitions Team","5310","Equipment - Purchase","12/23/2015"
"Wolverhampton City Council","http://opendatacommunities.org/id/metropolitan-district-council/wolverhampton","Amazon UK Marketplace","5.78","Global Budgets","5942","Books","12/23/2015"
"Wolverhampton City Council","http://opendatacommunities.org/id/metropolitan-district-council/wolverhampton","REGISTRARS OFFICE","58","Legal Services","8299","Training Expenses","12/23/2015"
"Wolverhampton City Council","http://opendatacommunities.org/id/metropolitan-district-council/wolverhampton","T GOLF LIMITED","4.17","Technical Support","5941","Equipment - Purchase","12/23/2015"
"Wolverhampton City Council","http://opendatacommunities.org/id/metropolitan-district-council/wolverhampton","CUMMINGS BROTHERS LOCK","8.33","Caretakers Community Centre","7399","Equipment - Purchase","12/23/2015"
"Wolverhampton City Council","http://opendatacommunities.org/id/metropolitan-district-council/wolverhampton","BT BILL PAYMENT 1","76.32","Court of Protection, Funerals Prot Prop","4812","Services - Supplies & Services to users","12/22/2015"
"Wolverhampton City Council","http://opendatacommunities.org/id/metropolitan-district-council/wolverhampton","ASDA HOME SHOPPING","190.68","Upper Pendeford Farm Childrens Home","5411","Provisions (Not for resale)","12/22/2015"
"Wolverhampton City Council","http://opendatacommunities.org/id/metropolitan-district-council/wolverhampton","FTPE WEBTIS 1","32.3","LAC Transitions Team","4112","Public Transport","12/22/2015"
"Wolverhampton City Council","http://opendatacommunities.org/id/metropolitan-district-council/wolverhampton","MAPLIN WOLVERHAMPT WV1","24.99","Members Expenses","5732","Computing - Consumables","12/22/2015"
"Wolverhampton City Council","http://opendatacommunities.org/id/metropolitan-district-council/wolverhampton","FACEBOOK UF66W7NB92","9.05","Communications & Marketing - General","7311","Marketing \ Non-staff advertising","12/22/2015"
"Wolverhampton City Council","http://opendatacommunities.org/id/metropolitan-district-council/wolverhampton","POST OFFICE COUNTER","10.26","MAST - Central Team","9402","Comms - Postage","12/22/2015"
"Wolverhampton City Council","http://opendatacommunities.org/id/metropolitan-district-council/wolverhampton","ROYAL CARPETS","350","LAC Transitions Team","5713","Equipment - Purchase","12/22/2015"
"Wolverhampton City Council","http://opendatacommunities.org/id/metropolitan-district-council/wolverhampton","E00192600000000","250","Childrens with Disabilities Team","6011","Financial Assistance In Exceptional Circ","12/22/2015"
"Wolverhampton City Council","http://opendatacommunities.org/id/metropolitan-district-council/wolverhampton","SPECIALIST CRAFTS LTD","84.26","Education And Access","5970","Materials","12/22/2015"
"Wolverhampton City Council","http://opendatacommunities.org/id/metropolitan-district-council/wolverhampton","WICKES","22.95","Play General","5211","Materials","12/22/2015"
"Wolverhampton City Council","http://opendatacommunities.org/id/metropolitan-district-council/wolverhampton","SAINSBURYS (2340)","8.5","SMT - Senior Management Team","5411","Provisions (Not for resale)","12/22/2015"
"Wolverhampton City Council","http://opendatacommunities.org/id/metropolitan-district-council/wolverhampton","POST OFFICE COUNTER","7.25","Head of Service - LAC","9402","Comms - Postage","12/22/2015"
"Wolverhampton City Council","http://opendatacommunities.org/id/metropolitan-district-council/wolverhampton","PO BUNKER S HILL","30","Ernest Bold Court","6011","Services - Supplies & Services to users","12/22/2015"
"Wolverhampton City Council","http://opendatacommunities.org/id/metropolitan-district-council/wolverhampton","FACEBOOK SF66W7NB92","591.05","Communications & Marketing - General","7311","Marketing \ Non-staff advertising","12/22/2015"
"Wolverhampton City Council","http://opendatacommunities.org/id/metropolitan-district-council/wolverhampton","PAYPAL  THEROTA","343.08","Civic Halls Non Direct Management A/C","5735","Marketing \ Non-staff advertising","12/22/2015"
"Wolverhampton City Council","http://opendatacommunities.org/id/metropolitan-district-council/wolverhampton","SPECIALIST CRAFTS LTD","-7.66","Education And Access","5970","Materials","12/22/2015"
"Wolverhampton City Council","http://opendatacommunities.org/id/metropolitan-district-council/wolverhampton","WICKES BUILDING","80.75","Technician","5211","Equipment - Purchase","12/22/2015"
"Wolverhampton City Council","http://opendatacommunities.org/id/metropolitan-district-council/wolverhampton","ASDA HOME SHOPPING","-0.45","Upper Pendeford Farm Childrens Home","5411","Provisions (Not for resale)","12/22/2015"
"Wolverhampton City Council","http://opendatacommunities.org/id/metropolitan-district-council/wolverhampton","WOMBOURNE COMPUTER SUP","16.31","Bradley Resource Centre","5045","Computing - Purchase of Hardware","12/22/2015"
"Wolverhampton City Council","http://opendatacommunities.org/id/metropolitan-district-council/wolverhampton","PAYPAL  AAIA","79","School Improvement","8211","Subscriptions","12/22/2015"
"Wolverhampton City Council","http://opendatacommunities.org/id/metropolitan-district-council/wolverhampton","WEST COAST TRAINS","16.2","LAC Transitions Team","4112","Public Transport","12/21/2015"
"Wolverhampton City Council","http://opendatacommunities.org/id/metropolitan-district-council/wolverhampton","SING UP","265","Music Support Team","8220","Equipment - Purchase","12/21/2015"
"Wolverhampton City Council","http://opendatacommunities.org/id/metropolitan-district-council/wolverhampton","ARGOS DIRECT","58.32","MAST 6 - Priory Green","5310","Grant Payments","12/21/2015"
"Wolverhampton City Council","http://opendatacommunities.org/id/metropolitan-district-council/wolverhampton","ALDI","3.32","Children & Family Contact Services","5411","Provisions (Not for resale)","12/21/2015"
"Wolverhampton City Council","http://opendatacommunities.org/id/metropolitan-district-council/wolverhampton","WICKES","4.16","Caretakers Community Centre","5211","Materials","12/21/2015"
"Wolverhampton City Council","http://opendatacommunities.org/id/metropolitan-district-council/wolverhampton","ARGOS RETAIL GROUP","117.43","LAC Transitions Team","5310","Equipment - Purchase","12/21/2015"
"Wolverhampton City Council","http://opendatacommunities.org/id/metropolitan-district-council/wolverhampton","ASDA SUPERSTORE","10","Civic Centre Catering","5411","Provisions (Not for resale)","12/21/2015"
"Wolverhampton City Council","http://opendatacommunities.org/id/metropolitan-district-council/wolverhampton","CELLMARK","1049","Bilston 1 - CIN SWU S17","8099","Services - Professional Fees","12/21/2015"
"Wolverhampton City Council","http://opendatacommunities.org/id/metropolitan-district-council/wolverhampton","ITUNES.COM/BILL","66.5","Learning Technologies","5735","Computing - Purchase of Software","12/21/2015"
"Wolverhampton City Council","http://opendatacommunities.org/id/metropolitan-district-council/wolverhampton","WISEPOPS.COM","33.75","City Direct","7372","Computing - Purchase of Software","12/21/2015"
"Wolverhampton City Council","http://opendatacommunities.org/id/metropolitan-district-council/wolverhampton","CUMMINGS BROTHERS LOCK","85.7","Caretakers Community Centre","7399","Equipment - Purchase","12/21/2015"
"Wolverhampton City Council","http://opendatacommunities.org/id/metropolitan-district-council/wolverhampton","E01510300000000","120","Emergency Duty Team","6011","Financial Assistance In Exceptional Circ","12/21/2015"
"Wolverhampton City Council","http://opendatacommunities.org/id/metropolitan-district-council/wolverhampton","WM MORRISON 024","4","Ernest Bold Court","5411","Provisions (Not for resale)","12/21/2015"
"Wolverhampton City Council","http://opendatacommunities.org/id/metropolitan-district-council/wolverhampton","BRITANNIA","110","Emergency Duty Team","7011","Services - Supplies & Services to users","12/21/2015"
"Wolverhampton City Council","http://opendatacommunities.org/id/metropolitan-district-council/wolverhampton","E09009100000000","50","Swan Bank","6011","Educ Trips, Holidays, Outings, Activity","12/21/2015"
"Wolverhampton City Council","http://opendatacommunities.org/id/metropolitan-district-council/wolverhampton","ITUNES.COM/BILL","19","Learning Technologies","5735","Computing - Purchase of Software","12/21/2015"
"Wolverhampton City Council","http://opendatacommunities.org/id/metropolitan-district-council/wolverhampton","TESCO STORES 3414","6.99","Mayoral Expenses","5411","Hospitality","12/21/2015"
"Wolverhampton City Council","http://opendatacommunities.org/id/metropolitan-district-council/wolverhampton","ASDA HOME SHOPPING","0.8","Ernest Bold Court","5411","Provisions (Not for resale)","12/21/2015"
"Wolverhampton City Council","http://opendatacommunities.org/id/metropolitan-district-council/wolverhampton","ADAMS MARK HOTELS","1550","Learning Technologies","3681","Conference Expenses","12/21/2015"
"Wolverhampton City Council","http://opendatacommunities.org/id/metropolitan-district-council/wolverhampton","SAINSBURYS (2340)","30.76","Mayoral Expenses","5411","Hospitality","12/21/2015"
"Wolverhampton City Council","http://opendatacommunities.org/id/metropolitan-district-council/wolverhampton","CELLMARK","1049","Bilston 1 - CIN SWU S17","8099","Services - Professional Fees","12/21/2015"
"Wolverhampton City Council","http://opendatacommunities.org/id/metropolitan-district-council/wolverhampton","POST OFFICE COUNTER","5.65","Looked After Team 1","9402","Comms - Postage","12/21/2015"
"Wolverhampton City Council","http://opendatacommunities.org/id/metropolitan-district-council/wolverhampton","Amazon EU","-31.54","Members Expenses","5969","Equipment - Purchase","12/21/2015"
"Wolverhampton City Council","http://opendatacommunities.org/id/metropolitan-district-council/wolverhampton","OFFICE DEPOT","162.33","HR Advice","5111","Stationery","12/21/2015"
"Wolverhampton City Council","http://opendatacommunities.org/id/metropolitan-district-council/wolverhampton","TESCO DELIVERY SAVER2","2.5","Towers Outdoor Education Centre","5968","Provisions (Not for resale)","12/21/2015"
"Wolverhampton City Council","http://opendatacommunities.org/id/metropolitan-district-council/wolverhampton","NATWEST BANK","100","Hostels / Outreach","6011","Financial Assistance In Exceptional Circ","12/21/2015"
"Wolverhampton City Council","http://opendatacommunities.org/id/metropolitan-district-council/wolverhampton","ASDA HOME SHOPPING","50.82","Swan Bank","5411","Provisions (Not for resale)","12/21/2015"
"Wolverhampton City Council","http://opendatacommunities.org/id/metropolitan-district-council/wolverhampton","OFFICE DEPOT","2.33","Upper Pendeford Farm Childrens Home","5111","Stationery","12/21/2015"
"Wolverhampton City Council","http://opendatacommunities.org/id/metropolitan-district-council/wolverhampton","OFFICE DEPOT","55.99","Mayoral Expenses","5111","Stationery","12/21/2015"
"Wolverhampton City Council","http://opendatacommunities.org/id/metropolitan-district-council/wolverhampton","MARKS & SPENCER","9.33","Cemeteries","5411","Provisions (Not for resale)","12/21/2015"
"Wolverhampton City Council","http://opendatacommunities.org/id/metropolitan-district-council/wolverhampton","B&M RETAIL","109.31","LAC Transitions Team","5310","Equipment - Purchase","12/21/2015"
"Wolverhampton City Council","http://opendatacommunities.org/id/metropolitan-district-council/wolverhampton","ASDA HOME SHOPPING","83.43","Ernest Bold Court","5411","Provisions (Not for resale)","12/21/2015"
"Wolverhampton City Council","http://opendatacommunities.org/id/metropolitan-district-council/wolverhampton","Amazon UK Marketplace","15.8","Bilston Museum","5942","Materials for resale","12/21/2015"
"Wolverhampton City Council","http://opendatacommunities.org/id/metropolitan-district-council/wolverhampton","FTPE WEBTIS 1","53.5","LAC Admin Team","4112","Public Transport","12/21/2015"
"Wolverhampton City Council","http://opendatacommunities.org/id/metropolitan-district-council/wolverhampton","CAR PARKING OFFICE","109.24","Work Related Studies","7523","Car Allowances","12/21/2015"
"Wolverhampton City Council","http://opendatacommunities.org/id/metropolitan-district-council/wolverhampton","HUGHES","500","LAC Transitions Team","5732","Equipment - Purchase","12/18/2015"
"Wolverhampton City Council","http://opendatacommunities.org/id/metropolitan-district-council/wolverhampton","ASDA HOME SHOPPING","98.5","46a, Second Avenue, Low Hill","5411","Provisions (Not for resale)","12/18/2015"
"Wolverhampton City Council","http://opendatacommunities.org/id/metropolitan-district-council/wolverhampton","JUICY FRUITS","141.12","Children's Village Nursery","5411","School Meals","12/18/2015"
"Wolverhampton City Council","http://opendatacommunities.org/id/metropolitan-district-council/wolverhampton","OFFICE DEPOT","26.3","MAST 4 - Warstones","5111","Stationery","12/18/2015"
"Wolverhampton City Council","http://opendatacommunities.org/id/metropolitan-district-council/wolverhampton","WILKO RETAIL LIMIT","16.5","Central Costs","5722","Equipment - Purchase","12/18/2015"
"Wolverhampton City Council","http://opendatacommunities.org/id/metropolitan-district-council/wolverhampton","OFFICE DEPOT","22.04","Street Cleansing Overheads","5111","Stationery","12/18/2015"
"Wolverhampton City Council","http://opendatacommunities.org/id/metropolitan-district-council/wolverhampton","OFFICE DEPOT","41.61","Patching","5111","Stationery","12/18/2015"
"Wolverhampton City Council","http://opendatacommunities.org/id/metropolitan-district-council/wolverhampton","POST OFFICE COUNTER","2.36","MAST 1 - Deansfield","9402","Comms - Postage","12/18/2015"
"Wolverhampton City Council","http://opendatacommunities.org/id/metropolitan-district-council/wolverhampton","POST OFFICE COUNTER","15.75","MAST 6 - Priory Green","9402","Comms - Postage","12/18/2015"
"Wolverhampton City Council","http://opendatacommunities.org/id/metropolitan-district-council/wolverhampton","OFFICE DEPOT","26.88","MAST 8 - Wednesfield","5111","Stationery","12/18/2015"
"Wolverhampton City Council","http://opendatacommunities.org/id/metropolitan-district-council/wolverhampton","IBIS BIRMINGHAM NEW ST","42.05","Headstart","7011","Services - Supplies & Services to users","12/18/2015"
"Wolverhampton City Council","http://opendatacommunities.org/id/metropolitan-district-council/wolverhampton","CARVER/WOLVERHAMPTON/L","48","Cleaning of Buildings - General","5211","Materials","12/18/2015"
"Wolverhampton City Council","http://opendatacommunities.org/id/metropolitan-district-council/wolverhampton","OFFICE DEPOT","66.22","Bilston Museum","5111","Stationery","12/18/2015"
"Wolverhampton City Council","http://opendatacommunities.org/id/metropolitan-district-council/wolverhampton","WWW.LOCAL.GOV.UK","229","Public Health Support Costs","7399","Equipment - Purchase","12/18/2015"
"Wolverhampton City Council","http://opendatacommunities.org/id/metropolitan-district-council/wolverhampton","Amazon UK Marketplace","45.56","College of Further Education","5942","Computing - Purchase of Hardware","12/18/2015"
"Wolverhampton City Council","http://opendatacommunities.org/id/metropolitan-district-council/wolverhampton","OFFICE DEPOT","52.58","Passenger Transport - General","5111","Stationery","12/18/2015"
"Wolverhampton City Council","http://opendatacommunities.org/id/metropolitan-district-council/wolverhampton","CT WOLVERHAMPTON","110","Dove - CIN SWU S17","8398","Equipment - Purchase","12/18/2015"
"Wolverhampton City Council","http://opendatacommunities.org/id/metropolitan-district-council/wolverhampton","OFFICE DEPOT","6.85","MAST 1 - Deansfield","5111","Stationery","12/18/2015"
"Wolverhampton City Council","http://opendatacommunities.org/id/metropolitan-district-council/wolverhampton","ROYAL CARPETS","100","LAC Transitions Team","5713","Independant Living Allowance","12/18/2015"
"Wolverhampton City Council","http://opendatacommunities.org/id/metropolitan-district-council/wolverhampton","WWW.BCLM.CO.UK","64","Dove - CIN SWU S17","7999","Educ Trips, Holidays, Outings, Activity","12/18/2015"
"Wolverhampton City Council","http://opendatacommunities.org/id/metropolitan-district-council/wolverhampton","PARK MOBILE","6.3","Mayoral Expenses","7523","Car Allowances","12/18/2015"
"Wolverhampton City Council","http://opendatacommunities.org/id/metropolitan-district-council/wolverhampton","Amazon UK Marketplace","22.65","Northicote Farm","5942","Materials","12/18/2015"
"Wolverhampton City Council","http://opendatacommunities.org/id/metropolitan-district-council/wolverhampton","OFFICE DEPOT","1.68","Passenger Transport - General","5111","Stationery","12/18/2015"
"Wolverhampton City Council","http://opendatacommunities.org/id/metropolitan-district-council/wolverhampton","B & Q","15.08","Parking Enforcement","5211","Materials","12/18/2015"
"Wolverhampton City Council","http://opendatacommunities.org/id/metropolitan-district-council/wolverhampton","FTPE WEBTIS 1","77.9","LAC Transitions Team","4112","Public Transport","12/18/2015"
"Wolverhampton City Council","http://opendatacommunities.org/id/metropolitan-district-council/wolverhampton","POST OFFICE COUNTER","264.25","Fostering Team & Allowances","9402","Comms - Postage","12/18/2015"
"Wolverhampton City Council","http://opendatacommunities.org/id/metropolitan-district-council/wolverhampton","COOPERATIVE HEALTH","3.58","Assessment Team (East)","5912","First Aid Requisites","12/18/2015"
"Wolverhampton City Council","http://opendatacommunities.org/id/metropolitan-district-council/wolverhampton","ITUNES.COM/BILL","0.79","Civic Halls Non Direct Management A/C","5735","Computing - Purchase of Software","12/18/2015"
"Wolverhampton City Council","http://opendatacommunities.org/id/metropolitan-district-council/wolverhampton","WM MORRISON 024","28.74","MAST 2 - Bilston","5411","Provisions (Not for resale)","12/18/2015"
"Wolverhampton City Council","http://opendatacommunities.org/id/metropolitan-district-council/wolverhampton","Amazon UK Marketplace","164.89","Customer Services","5942","Books","12/17/2015"
"Wolverhampton City Council","http://opendatacommunities.org/id/metropolitan-district-council/wolverhampton","Amazon EU","31.54","Mayoral Expenses","5969","Equipment - Purchase","12/17/2015"
"Wolverhampton City Council","http://opendatacommunities.org/id/metropolitan-district-council/wolverhampton","OFFICE DEPOT","51.41","Cemeteries","5111","Stationery","12/17/2015"
"Wolverhampton City Council","http://opendatacommunities.org/id/metropolitan-district-council/wolverhampton","TESCO STORES 3414","8.95","Mayoral Expenses","5411","Hospitality","12/17/2015"
"Wolverhampton City Council","http://opendatacommunities.org/id/metropolitan-district-council/wolverhampton","FTPE WEBTIS 1","-353.2","LAC Transitions Team","4112","Public Transport","12/17/2015"
"Wolverhampton City Council","http://opendatacommunities.org/id/metropolitan-district-council/wolverhampton","LOYD WEDNESFIELD WOLVE","50","Duke Street Bungalows","6011","Financial Assistance In Exceptional Circ","12/17/2015"
"Wolverhampton City Council","http://opendatacommunities.org/id/metropolitan-district-council/wolverhampton","FACEBOOK WAWB78EB92","582.2","Communications & Marketing - General","7311","Marketing \ Non-staff advertising","12/17/2015"
"Wolverhampton City Council","http://opendatacommunities.org/id/metropolitan-district-council/wolverhampton","Amazon EU","10.22","Northicote Farm","5969","Materials","12/17/2015"
"Wolverhampton City Council","http://opendatacommunities.org/id/metropolitan-district-council/wolverhampton","SAINSBURYS (2340)","17.4","Civic Centre Catering","5411","Provisions (Not for resale)","12/17/2015"
"Wolverhampton City Council","http://opendatacommunities.org/id/metropolitan-district-council/wolverhampton","TUNSTALL HEALTHCARE UK","28.95","Telecare","1799","Equipment - Purchase","12/17/2015"
"Wolverhampton City Council","http://opendatacommunities.org/id/metropolitan-district-council/wolverhampton","OFFICE DEPOT","17.88","MAST - Central Team","5111","Stationery","12/17/2015"
"Wolverhampton City Council","http://opendatacommunities.org/id/metropolitan-district-council/wolverhampton","Virgintrains.co.uk","13.4","Headstart","4112","Public Transport","12/17/2015"
"Wolverhampton City Council","http://opendatacommunities.org/id/metropolitan-district-council/wolverhampton","ARGOS DIRECT","120.14","MAST 6 - Priory Green","5964","Grant Payments","12/17/2015"
"Wolverhampton City Council","http://opendatacommunities.org/id/metropolitan-district-council/wolverhampton","MDN SUPPLIES","62.9","Civic Centre","5251","Equipment - Purchase","12/17/2015"
"Wolverhampton City Council","http://opendatacommunities.org/id/metropolitan-district-council/wolverhampton","AirServer Licenses","69.9","Technical Support","5817","Computing - Purchase of Software","12/17/2015"
"Wolverhampton City Council","http://opendatacommunities.org/id/metropolitan-district-council/wolverhampton","MAPLIN WOLVERHAMPT WV1","25.04","Members Expenses","5732","Computing - Consumables","12/17/2015"
"Wolverhampton City Council","http://opendatacommunities.org/id/metropolitan-district-council/wolverhampton","PREMIER INN","105.49","CIN - Bilston CC2 - Area 2","3811","Accommodation Costs","12/17/2015"
"Wolverhampton City Council","http://opendatacommunities.org/id/metropolitan-district-council/wolverhampton","ADY WEEBLY","129","Technical Support","5817","Computing - Purchase of Software","12/17/2015"
"Wolverhampton City Council","http://opendatacommunities.org/id/metropolitan-district-council/wolverhampton","COMBINED COURT","150","Legal Services","9222","Services - Fees and Charges","12/17/2015"
"Wolverhampton City Council","http://opendatacommunities.org/id/metropolitan-district-council/wolverhampton","SAINSBURYS SACAT (2340","1.48","Mayoral Expenses","5411","Hospitality","12/17/2015"
"Wolverhampton City Council","http://opendatacommunities.org/id/metropolitan-district-council/wolverhampton","TRAINLINE","46.82","Avenues - CIN SWU S17","4112","Public Transport","12/17/2015"
"Wolverhampton City Council","http://opendatacommunities.org/id/metropolitan-district-council/wolverhampton","SAINSBURYS 2040","49.49","Duke Street Bungalows","5411","Provisions (Not for resale)","12/17/2015"
"Wolverhampton City Council","http://opendatacommunities.org/id/metropolitan-district-council/wolverhampton","NATIONAL EXPRESS LIMIT","97.3","Bilston 2 - CIN SWU S17","4131","Public Transport","12/17/2015"
"Wolverhampton City Council","http://opendatacommunities.org/id/metropolitan-district-council/wolverhampton","SAINSBURYS 2040","8.05","Duke Street Bungalows","5411","Provisions (Not for resale)","12/17/2015"
"Wolverhampton City Council","http://opendatacommunities.org/id/metropolitan-district-council/wolverhampton","OFFICE DEPOT","95.13","MAST 8 - Wednesfield","5111","Stationery","12/17/2015"
"Wolverhampton City Council","http://opendatacommunities.org/id/metropolitan-district-council/wolverhampton","CO-OP GROUP 070362","111.8","Headstart","5411","Provisions (Not for resale)","12/17/2015"
"Wolverhampton City Council","http://opendatacommunities.org/id/metropolitan-district-council/wolverhampton","FACEBOOK YAWB78EB92","17.92","Communications & Marketing - General","7311","Marketing \ Non-staff advertising","12/17/2015"
"Wolverhampton City Council","http://opendatacommunities.org/id/metropolitan-district-council/wolverhampton","GRO HM PASSPORT OFFICE","93.6","Legal Services","9399","Services - Fees and Charges","12/17/2015"
"Wolverhampton City Council","http://opendatacommunities.org/id/metropolitan-district-council/wolverhampton","CURRYS ONLINE","179.99","CIN - Whitmore Reans CC - Area 5","5732","Equipment - Purchase","12/17/2015"
"Wolverhampton City Council","http://opendatacommunities.org/id/metropolitan-district-council/wolverhampton","ART INTERIORS & FRAMES","100.02","Civic Halls Non Direct Management A/C","5999","Equipment - Purchase","12/17/2015"
"Wolverhampton City Council","http://opendatacommunities.org/id/metropolitan-district-council/wolverhampton","OFFICE DEPOT","43.77","MAST - Central Team","5111","Stationery","12/17/2015"
"Wolverhampton City Council","http://opendatacommunities.org/id/metropolitan-district-council/wolverhampton","GRO HM PASSPORT OFFICE","-23.4","Legal Services","9399","Services - Fees and Charges","12/17/2015"
"Wolverhampton City Council","http://opendatacommunities.org/id/metropolitan-district-council/wolverhampton","SACAT MARKS & SPENCER","5.04","Mayoral Expenses","5411","Hospitality","12/16/2015"
"Wolverhampton City Council","http://opendatacommunities.org/id/metropolitan-district-council/wolverhampton","BARCLAYS BANK PLC","240","Valley Park - CIN SWU S17","6011","Financial Assistance In Exceptional Circ","12/16/2015"
"Wolverhampton City Council","http://opendatacommunities.org/id/metropolitan-district-council/wolverhampton","WM MORRISONS","24.15","Graiseley - CIN SWU S17","5411","Provisions (Not for resale)","12/16/2015"
"Wolverhampton City Council","http://opendatacommunities.org/id/metropolitan-district-council/wolverhampton","TESCO STORES 3414","5.46","Mayoral Expenses","5411","Hospitality","12/16/2015"
"Wolverhampton City Council","http://opendatacommunities.org/id/metropolitan-district-council/wolverhampton","RICHARDS FLORAL DESIGN","195","Youth Offending Team","5992","Equipment - Purchase","12/16/2015"
"Wolverhampton City Council","http://opendatacommunities.org/id/metropolitan-district-council/wolverhampton","E01350800000000","10","Swan Bank","6011","Provisions (Not for resale)","12/16/2015"
"Wolverhampton City Council","http://opendatacommunities.org/id/metropolitan-district-council/wolverhampton","Amazon UK Marketplace","24.17","Northicote Farm","5942","Materials","12/16/2015"
"Wolverhampton City Council","http://opendatacommunities.org/id/metropolitan-district-council/wolverhampton","MERCURE WOLVERHAMPTON","229.87","Learning Disabilities Management","7011","Training Expenses","12/16/2015"
"Wolverhampton City Council","http://opendatacommunities.org/id/metropolitan-district-council/wolverhampton","SAINSBURYS 2040","15","Children's Village Children Centre","5411","Hospitality","12/16/2015"
"Wolverhampton City Council","http://opendatacommunities.org/id/metropolitan-district-council/wolverhampton","TRAINLINE","54.57","Maintenance & Technical Materials","4112","Public Transport","12/16/2015"
"Wolverhampton City Council","http://opendatacommunities.org/id/metropolitan-district-council/wolverhampton","WDT LONDON","-50","Civic Hall Out-house Promotions","7394","Equipment - Purchase","12/16/2015"
"Wolverhampton City Council","http://opendatacommunities.org/id/metropolitan-district-council/wolverhampton","WEST COAST TRAINS","96.85","Graiseley - CIN SWU S17","4112","Public Transport","12/16/2015"
"Wolverhampton City Council","http://opendatacommunities.org/id/metropolitan-district-council/wolverhampton","BOOKWHEN","180","Learning Technologies","7372","Computing - Purchase of Software","12/16/2015"
"Wolverhampton City Council","http://opendatacommunities.org/id/metropolitan-district-council/wolverhampton","WWW.SEVERNTRENTSEARCHE","546","Legal Services","4900","Electricity","12/16/2015"
"Wolverhampton City Council","http://opendatacommunities.org/id/metropolitan-district-council/wolverhampton","WWW.VIKING-DIRECT.CO.U","41.93","Northicote Farm","5111","Materials","12/16/2015"
"Wolverhampton City Council","http://opendatacommunities.org/id/metropolitan-district-council/wolverhampton","OFFICE DEPOT","7.14","Financial Assessments","5111","Stationery","12/16/2015"
"Wolverhampton City Council","http://opendatacommunities.org/id/metropolitan-district-council/wolverhampton","WWW.POSTURITE.CO.UK","64.95","Safeguarding Admin Resource","5021","Furniture","12/16/2015"
"Wolverhampton City Council","http://opendatacommunities.org/id/metropolitan-district-council/wolverhampton","POST OFFICE COUNTER","55.75","Graiseley - CIN SWU S17","9402","Comms - Postage","12/16/2015"
"Wolverhampton City Council","http://opendatacommunities.org/id/metropolitan-district-council/wolverhampton","BARCLAYS BANK PLC","240","Valley Park - CIN SWU S17","6011","Financial Assistance In Exceptional Circ","12/16/2015"
"Wolverhampton City Council","http://opendatacommunities.org/id/metropolitan-district-council/wolverhampton","ASDA HOME SHOPPING","-1.17","Ernest Bold Court","5411","Provisions (Not for resale)","12/16/2015"
"Wolverhampton City Council","http://opendatacommunities.org/id/metropolitan-district-council/wolverhampton","TESCO STORES 5194","43.24","Towers Outdoor Education Centre","5411","Provisions (Not for resale)","12/16/2015"
"Wolverhampton City Council","http://opendatacommunities.org/id/metropolitan-district-council/wolverhampton","TESCO STORES 6727","8.08","Youth Offending Team","5411","Provisions (Not for resale)","12/16/2015"
"Wolverhampton City Council","http://opendatacommunities.org/id/metropolitan-district-council/wolverhampton","ASDA HOME SHOPPING","-0.5","Ernest Bold Court","5411","Provisions (Not for resale)","12/16/2015"
"Wolverhampton City Council","http://opendatacommunities.org/id/metropolitan-district-council/wolverhampton","ARGOS LTD","252.19","LAC Transitions Team","5310","Equipment - Purchase","12/16/2015"
"Wolverhampton City Council","http://opendatacommunities.org/id/metropolitan-district-council/wolverhampton","ASDA SUPERSTORE","24","Whitmore Reans - CIN SWU S17","5411","Provisions (Not for resale)","12/16/2015"
"Wolverhampton City Council","http://opendatacommunities.org/id/metropolitan-district-council/wolverhampton","ARGOS DIRECT","28.32","LAC Admin Team","5310","Equipment - Purchase","12/16/2015"
"Wolverhampton City Council","http://opendatacommunities.org/id/metropolitan-district-council/wolverhampton","ASDA SUPERSTORE","23.36","Swan Bank","5411","Provisions (Not for resale)","12/16/2015"
"Wolverhampton City Council","http://opendatacommunities.org/id/metropolitan-district-council/wolverhampton","ASDA HOME SHOPPING","60.48","Ernest Bold Court","5411","Provisions (Not for resale)","12/16/2015"
"Wolverhampton City Council","http://opendatacommunities.org/id/metropolitan-district-council/wolverhampton","ARGOS DIRECT","2.99","LAC Admin Team","5310","Equipment - Purchase","12/16/2015"
"Wolverhampton City Council","http://opendatacommunities.org/id/metropolitan-district-council/wolverhampton","FACEBOOK MC3UB8AC22","168.46","College of Further Education","7311","Marketing \ Non-staff advertising","12/16/2015"
"Wolverhampton City Council","http://opendatacommunities.org/id/metropolitan-district-council/wolverhampton","Amazon EU","23.32","Towers Outdoor Education Centre","5969","Equipment - Purchase","12/16/2015"
"Wolverhampton City Council","http://opendatacommunities.org/id/metropolitan-district-council/wolverhampton","STERMAT CAR AND VAN HI","800","Towers Outdoor Education Centre","5521","Vehicle Maintenance - Repairs","12/16/2015"
"Wolverhampton City Council","http://opendatacommunities.org/id/metropolitan-district-council/wolverhampton","WWW.SEVERNTRENTSEARCHE","546","Legal Services","4900","Electricity","12/16/2015"
"Wolverhampton City Council","http://opendatacommunities.org/id/metropolitan-district-council/wolverhampton","ASDA SUPERSTORE","13.5","Whitmore Reans - CIN SWU S17","5411","Provisions (Not for resale)","12/16/2015"
"Wolverhampton City Council","http://opendatacommunities.org/id/metropolitan-district-council/wolverhampton","GRO HM PASSPORT OFFICE","23.4","Legal Services","9399","Services - Fees and Charges","12/16/2015"
"Wolverhampton City Council","http://opendatacommunities.org/id/metropolitan-district-council/wolverhampton","TFM FARM & COUNTRY SUP","143.55","Northicote Farm","5399","Equipment - Purchase","12/16/2015"
"Wolverhampton City Council","http://opendatacommunities.org/id/metropolitan-district-council/wolverhampton","WWW.SEVERNTRENTSEARCHE","546","Legal Services","4900","Electricity","12/16/2015"
"Wolverhampton City Council","http://opendatacommunities.org/id/metropolitan-district-council/wolverhampton","ASDA SUPERSTORE","200","Valley Park - CIN SWU S17","5411","Provisions (Not for resale)","12/16/2015"
"Wolverhampton City Council","http://opendatacommunities.org/id/metropolitan-district-council/wolverhampton","THE CONSORTIUM/WMS","206.38","Education And Access","5968","Materials","12/16/2015"
"Wolverhampton City Council","http://opendatacommunities.org/id/metropolitan-district-council/wolverhampton","ASDA SUPERSTORE","29.49","Whitmore Reans - CIN SWU S17","5411","Provisions (Not for resale)","12/16/2015"
"Wolverhampton City Council","http://opendatacommunities.org/id/metropolitan-district-council/wolverhampton","FACEBOOK RC3UB8AC22","31.54","College of Further Education","7311","Marketing \ Non-staff advertising","12/16/2015"
"Wolverhampton City Council","http://opendatacommunities.org/id/metropolitan-district-council/wolverhampton","WWW.VIKING-DIRECT.CO.U","190.4","Northicote Farm","5111","Materials","12/16/2015"
"Wolverhampton City Council","http://opendatacommunities.org/id/metropolitan-district-council/wolverhampton","BRITANNIA WOLVERHA","166.67","Mental Health Assessment & Care Mgmt","7011","Services - Supplies & Services to users","12/15/2015"
"Wolverhampton City Council","http://opendatacommunities.org/id/metropolitan-district-council/wolverhampton","ASDA SUPERSTORE","175.78","Upper Pendeford Farm Childrens Home","5411","Provisions (Not for resale)","12/15/2015"
"Wolverhampton City Council","http://opendatacommunities.org/id/metropolitan-district-council/wolverhampton","BRITANNIA WOLVERHA","166.67","Mental Health Assessment & Care Mgmt","7011","Services - Supplies & Services to users","12/15/2015"
"Wolverhampton City Council","http://opendatacommunities.org/id/metropolitan-district-council/wolverhampton","HOMEZONE","138","CIN - Bilston CC2 - Area 2","5211","Materials","12/15/2015"
"Wolverhampton City Council","http://opendatacommunities.org/id/metropolitan-district-council/wolverhampton","OFFICE DEPOT","21.25","Towers Outdoor Education Centre","5111","Stationery","12/15/2015"
"Wolverhampton City Council","http://opendatacommunities.org/id/metropolitan-district-council/wolverhampton","Amazon UK Marketplace","55.23","Bert Williams Leisure Centre","5942","Equipment - Purchase","12/15/2015"
"Wolverhampton City Council","http://opendatacommunities.org/id/metropolitan-district-council/wolverhampton","SAINSBURYS (2340)","36","Youth Offending Team","5411","Provisions (Not for resale)","12/15/2015"
"Wolverhampton City Council","http://opendatacommunities.org/id/metropolitan-district-council/wolverhampton","OFFICE DEPOT","171.91","Civic Halls Non Direct Management A/C","5111","Stationery","12/15/2015"
"Wolverhampton City Council","http://opendatacommunities.org/id/metropolitan-district-council/wolverhampton","SAINSBURYS (2340)","60","Youth Offending Team","5411","Provisions (Not for resale)","12/15/2015"
"Wolverhampton City Council","http://opendatacommunities.org/id/metropolitan-district-council/wolverhampton","SAINSBURYS (2340)","60","Youth Offending Team","5411","Provisions (Not for resale)","12/15/2015"
"Wolverhampton City Council","http://opendatacommunities.org/id/metropolitan-district-council/wolverhampton","ARGOS LTD","10.04","Parking Enforcement","5310","Equipment - Purchase","12/15/2015"
"Wolverhampton City Council","http://opendatacommunities.org/id/metropolitan-district-council/wolverhampton","BRITANNIA WOLVERHA","166.67","Mental Health Assessment & Care Mgmt","7011","Services - Supplies & Services to users","12/15/2015"
"Wolverhampton City Council","http://opendatacommunities.org/id/metropolitan-district-council/wolverhampton","THE POST OFFICE","220","Traffic Signals","9402","Computing - Purchase of Hardware","12/15/2015"
"Wolverhampton City Council","http://opendatacommunities.org/id/metropolitan-district-council/wolverhampton","Virgintrains.co.uk","29.4","Looked After Team 1","4112","Public Transport","12/15/2015"
"Wolverhampton City Council","http://opendatacommunities.org/id/metropolitan-district-council/wolverhampton","SAINSBURYS (2340)","60","Youth Offending Team","5411","Provisions (Not for resale)","12/15/2015"
"Wolverhampton City Council","http://opendatacommunities.org/id/metropolitan-district-council/wolverhampton","WAITROSE 696","22.4","Youth Offending Team","5411","Provisions (Not for resale)","12/15/2015"
"Wolverhampton City Council","http://opendatacommunities.org/id/metropolitan-district-council/wolverhampton","Amazon UK Marketplace","5.8","Legal Services","5942","Books","12/15/2015"
"Wolverhampton City Council","http://opendatacommunities.org/id/metropolitan-district-council/wolverhampton","POST OFFICE COUNTER","108","Children's Village Children Centre","9402","Comms - Postage","12/15/2015"
"Wolverhampton City Council","http://opendatacommunities.org/id/metropolitan-district-council/wolverhampton","FIVEWAYS CONVENIENCE S","3.23","Headstart","5411","Provisions (Not for resale)","12/15/2015"
"Wolverhampton City Council","http://opendatacommunities.org/id/metropolitan-district-council/wolverhampton","ARGOS LTD","15.82","Duke Street Bungalows","5310","Equipment - Purchase","12/15/2015"
"Wolverhampton City Council","http://opendatacommunities.org/id/metropolitan-district-council/wolverhampton","THE COAL AUTHORITY","248.4","Legal Services","9399","Services - Fees and Charges","12/15/2015"
"Wolverhampton City Council","http://opendatacommunities.org/id/metropolitan-district-council/wolverhampton","WOLVES CC","173.68","Whitmore Reans - CIN SWU S17","9399","Services - Fees and Charges","12/15/2015"
"Wolverhampton City Council","http://opendatacommunities.org/id/metropolitan-district-council/wolverhampton","SCCI ALPHATRACK LT","-166","Aldersley Leisure Village","4812","Equipment - Purchase","12/15/2015"
"Wolverhampton City Council","http://opendatacommunities.org/id/metropolitan-district-council/wolverhampton","IKEA ONLINE","165","Avenues - CIN SWU S17","5719","Equipment - Purchase","12/15/2015"
"Wolverhampton City Council","http://opendatacommunities.org/id/metropolitan-district-council/wolverhampton","G & M HALE (SUNDRIES)","9.12","Discretionary Fund","5992","Materials","12/15/2015"
"Wolverhampton City Council","http://opendatacommunities.org/id/metropolitan-district-council/wolverhampton","SAINSBURYS (2340)","4.85","Mayoral Expenses","5411","Hospitality","12/15/2015"
"Wolverhampton City Council","http://opendatacommunities.org/id/metropolitan-district-council/wolverhampton","STERMAT CAR AND VAN HI","1037.1","Towers Outdoor Education Centre","5521","Hire of Vehicles","12/15/2015"
"Wolverhampton City Council","http://opendatacommunities.org/id/metropolitan-district-council/wolverhampton","ROYAL CARPETS","195.83","LAC Transitions Team","5713","Accommodation Costs","12/15/2015"
"Wolverhampton City Council","http://opendatacommunities.org/id/metropolitan-district-council/wolverhampton","ASDA SUPERSTORE","76.97","Headstart","5411","Provisions (Not for resale)","12/15/2015"
"Wolverhampton City Council","http://opendatacommunities.org/id/metropolitan-district-council/wolverhampton","Amazon UK Marketplace","5.67","Bert Williams Leisure Centre","5942","Stationery","12/15/2015"
"Wolverhampton City Council","http://opendatacommunities.org/id/metropolitan-district-council/wolverhampton","BRITANNIA WOLVERHA","95","Mental Health Assessment & Care Mgmt","7011","Services - Supplies & Services to users","12/15/2015"
"Wolverhampton City Council","http://opendatacommunities.org/id/metropolitan-district-council/wolverhampton","SAINSBURYS (2340)","60","Youth Offending Team","5411","Provisions (Not for resale)","12/15/2015"
"Wolverhampton City Council","http://opendatacommunities.org/id/metropolitan-district-council/wolverhampton","NOTEMACHINE","50","Children's Village Children Centre","6011","Equipment - Purchase","12/15/2015"
"Wolverhampton City Council","http://opendatacommunities.org/id/metropolitan-district-council/wolverhampton","SUBWAY","45","Headstart","5812","Educ Trips, Holidays, Outings, Activity","12/15/2015"
"Wolverhampton City Council","http://opendatacommunities.org/id/metropolitan-district-council/wolverhampton","G & M HALE LTD","24","Discretionary Fund","5992","Materials","12/15/2015"
"Wolverhampton City Council","http://opendatacommunities.org/id/metropolitan-district-council/wolverhampton","NATIONWIDE ELECTRICAL","125","Music Support Team","5722","Equipment - Purchase","12/15/2015"
"Wolverhampton City Council","http://opendatacommunities.org/id/metropolitan-district-council/wolverhampton","Amazon UK Marketplace","1.65","Bert Williams Leisure Centre","5942","Stationery","12/15/2015"
"Wolverhampton City Council","http://opendatacommunities.org/id/metropolitan-district-council/wolverhampton","GRO HM PASSPORT OFFICE","9.25","Alfred Squire - CIN SWU S17","9399","Services - Fees and Charges","12/15/2015"
"Wolverhampton City Council","http://opendatacommunities.org/id/metropolitan-district-council/wolverhampton","POST OFFICE COUNTER","269.8","Adoption and Residence Team & Allowances","9402","Comms - Postage","12/15/2015"
"Wolverhampton City Council","http://opendatacommunities.org/id/metropolitan-district-council/wolverhampton","SAINSBURYS (2340)","60","Youth Offending Team","5411","Provisions (Not for resale)","12/15/2015"
"Wolverhampton City Council","http://opendatacommunities.org/id/metropolitan-district-council/wolverhampton","WEST COAST TRAINS","178.6","SMT - Senior Management Team","4112","Public Transport","12/14/2015"
"Wolverhampton City Council","http://opendatacommunities.org/id/metropolitan-district-council/wolverhampton","WWW.VIPDIARIES.CO.UK","19.15","MAST 2 - Bilston","5999","Stationery","12/14/2015"
"Wolverhampton City Council","http://opendatacommunities.org/id/metropolitan-district-council/wolverhampton","WOLVERHAMPTON SPORTS A","100","Youth Service - General","7032","Educ Trips, Holidays, Outings, Activity","12/14/2015"
"Wolverhampton City Council","http://opendatacommunities.org/id/metropolitan-district-council/wolverhampton","OFFICE DEPOT","36.81","Fostering Team","5111","Stationery","12/14/2015"
"Wolverhampton City Council","http://opendatacommunities.org/id/metropolitan-district-council/wolverhampton","IKEA","25","LAC Transitions Team","5719","Equipment - Purchase","12/14/2015"
"Wolverhampton City Council","http://opendatacommunities.org/id/metropolitan-district-council/wolverhampton","ASDA HOME SHOPPING","74.39","Swan Bank","5411","Provisions (Not for resale)","12/14/2015"
"Wolverhampton City Council","http://opendatacommunities.org/id/metropolitan-district-council/wolverhampton","WWW.MAPLIN.CO.UK","10.82","Technician","5732","Equipment - Purchase","12/14/2015"
"Wolverhampton City Council","http://opendatacommunities.org/id/metropolitan-district-council/wolverhampton","BRITANNIA","153.33","Mental Health Assessment & Care Mgmt","7011","Services - Supplies & Services to users","12/14/2015"
"Wolverhampton City Council","http://opendatacommunities.org/id/metropolitan-district-council/wolverhampton","WEST COAST TRAINS","7.6","Economic Development","4112","Public Transport","12/14/2015"
"Wolverhampton City Council","http://opendatacommunities.org/id/metropolitan-district-council/wolverhampton","SAINSBURYS SACAT (2340","4.6","Civic Centre Catering","5411","Provisions (Not for resale)","12/14/2015"
"Wolverhampton City Council","http://opendatacommunities.org/id/metropolitan-district-council/wolverhampton","OFFICE DEPOT","6.88","Information & Intelligence","5111","Stationery","12/14/2015"
"Wolverhampton City Council","http://opendatacommunities.org/id/metropolitan-district-council/wolverhampton","IKEA","391","LAC Transitions Team","5719","Equipment - Purchase","12/14/2015"
"Wolverhampton City Council","http://opendatacommunities.org/id/metropolitan-district-council/wolverhampton","COSMO WOLVERHAMPTON","125.6","Upper Pendeford Farm Childrens Home","5812","Educ Trips, Holidays, Outings, Activity","12/14/2015"
"Wolverhampton City Council","http://opendatacommunities.org/id/metropolitan-district-council/wolverhampton","KONICA MINOLTA BUSINES","149.1","Music Support Team","7399","Equipment - Purchase","12/14/2015"
"Wolverhampton City Council","http://opendatacommunities.org/id/metropolitan-district-council/wolverhampton","WOLVERHAMPTON SPORTS A","25.8","Youth Service - General","7032","Educ Trips, Holidays, Outings, Activity","12/14/2015"
"Wolverhampton City Council","http://opendatacommunities.org/id/metropolitan-district-council/wolverhampton","YOUNGS SHOE REPAIRS LI","7.5","MAST 2 - Bilston","7251","Equipment - Purchase","12/14/2015"
"Wolverhampton City Council","http://opendatacommunities.org/id/metropolitan-district-council/wolverhampton","OFFICE DEPOT","8.8","CIN - Dove CC - Area 6","5111","Stationery","12/14/2015"
"Wolverhampton City Council","http://opendatacommunities.org/id/metropolitan-district-council/wolverhampton","PRIMARK","53","LAC Transitions Team","5651","Services - Supplies & Services to users","12/14/2015"
"Wolverhampton City Council","http://opendatacommunities.org/id/metropolitan-district-council/wolverhampton","Amazon UK Marketplace","9.49","Adoption and Residence Team & Allowances","5942","Equipment - Purchase","12/14/2015"
"Wolverhampton City Council","http://opendatacommunities.org/id/metropolitan-district-council/wolverhampton","ASDA HOME SHOPPING","0.8","Ernest Bold Court","5411","Provisions (Not for resale)","12/14/2015"
"Wolverhampton City Council","http://opendatacommunities.org/id/metropolitan-district-council/wolverhampton","ARGOS RETAIL GROUP","167.94","MAST 8 - Wednesfield","5310","Equipment - Purchase","12/14/2015"
"Wolverhampton City Council","http://opendatacommunities.org/id/metropolitan-district-council/wolverhampton","ARGOS RETAIL GROUP","63.74","Upper Pendeford Farm Childrens Home","5310","Equipment - Purchase","12/14/2015"
"Wolverhampton City Council","http://opendatacommunities.org/id/metropolitan-district-council/wolverhampton","ASDA SUPERSTORE","80","Ernest Bold Court","5411","Printing","12/14/2015"
"Wolverhampton City Council","http://opendatacommunities.org/id/metropolitan-district-council/wolverhampton","ASDA HOME SHOPPING","2.26","Swan Bank","5411","Provisions (Not for resale)","12/14/2015"
"Wolverhampton City Council","http://opendatacommunities.org/id/metropolitan-district-council/wolverhampton","ASDA HOME SHOPPING","89.69","Ernest Bold Court","5411","Provisions (Not for resale)","12/14/2015"
"Wolverhampton City Council","http://opendatacommunities.org/id/metropolitan-district-council/wolverhampton","IKEA","245","LAC Transitions Team","5719","Equipment - Purchase","12/14/2015"
"Wolverhampton City Council","http://opendatacommunities.org/id/metropolitan-district-council/wolverhampton","LIVERPOOL DIR SIA","220","Traffic Signals","7393","Computing - Purchase of Hardware","12/14/2015"
"Wolverhampton City Council","http://opendatacommunities.org/id/metropolitan-district-council/wolverhampton","Amazon UK Marketplace","15.99","Adoption and Residence Team & Allowances","5942","Equipment - Purchase","12/14/2015"
"Wolverhampton City Council","http://opendatacommunities.org/id/metropolitan-district-council/wolverhampton","COMBINED COURT","8155","Legal Services","9222","Services - Fees and Charges","12/14/2015"
"Wolverhampton City Council","http://opendatacommunities.org/id/metropolitan-district-council/wolverhampton","POST OFFICE COUNTER","54","Childrens Centres & Early Years","9402","Comms - Postage","12/14/2015"
"Wolverhampton City Council","http://opendatacommunities.org/id/metropolitan-district-council/wolverhampton","WWW.NETGIANT.COM","94","Box Office Administration","5943","Stationery","12/14/2015"
"Wolverhampton City Council","http://opendatacommunities.org/id/metropolitan-district-council/wolverhampton","WEST COAST TRAINS","106.6","Graiseley - CIN SWU S17","4112","Public Transport","12/14/2015"
"Wolverhampton City Council","http://opendatacommunities.org/id/metropolitan-district-council/wolverhampton","WWW.ICO.GOV.UK","35","Members Expenses","9399","Services - Fees and Charges","12/14/2015"
"Wolverhampton City Council","http://opendatacommunities.org/id/metropolitan-district-council/wolverhampton","Amazon EU","50.07","LAC Admin Team","5969","Equipment - Purchase","12/14/2015"
"Wolverhampton City Council","http://opendatacommunities.org/id/metropolitan-district-council/wolverhampton","ARGOS LTD","12.57","Duke Street Bungalows","5310","Equipment - Purchase","12/14/2015"
"Wolverhampton City Council","http://opendatacommunities.org/id/metropolitan-district-council/wolverhampton","WWW.ICO.GOV.UK","35","Members Expenses","9399","Services - Fees and Charges","12/14/2015"
"Wolverhampton City Council","http://opendatacommunities.org/id/metropolitan-district-council/wolverhampton","POST OFFICE COUNTER","63","MAST 8 - Wednesfield","9402","Comms - Postage","12/14/2015"
"Wolverhampton City Council","http://opendatacommunities.org/id/metropolitan-district-council/wolverhampton","Amazon UK Marketplace","53.45","Bert Williams Leisure Centre","5942","Equipment - Purchase","12/14/2015"
"Wolverhampton City Council","http://opendatacommunities.org/id/metropolitan-district-council/wolverhampton","HUGHES","416.67","LAC Transitions Team","5732","Independant Living Allowance","12/14/2015"
"Wolverhampton City Council","http://opendatacommunities.org/id/metropolitan-district-council/wolverhampton","OFFICE DEPOT","33.56","Adoption and Residence Team & Allowances","5111","Stationery","12/14/2015"
"Wolverhampton City Council","http://opendatacommunities.org/id/metropolitan-district-council/wolverhampton","PREMIER INN","124.98","Workforce Development","3811","Accommodation Costs","12/14/2015"
"Wolverhampton City Council","http://opendatacommunities.org/id/metropolitan-district-council/wolverhampton","B&M RETAIL","46.63","LAC Transitions Team","5310","Accommodation Costs","12/14/2015"
"Wolverhampton City Council","http://opendatacommunities.org/id/metropolitan-district-council/wolverhampton","Amazon UK Marketplace","88.92","Technical Support","5942","Computing - Purchase of Hardware","12/11/2015"
"Wolverhampton City Council","http://opendatacommunities.org/id/metropolitan-district-council/wolverhampton","WIX.COM","1.9","Technical Support","5734","Computing - Purchase of Software","12/11/2015"
"Wolverhampton City Council","http://opendatacommunities.org/id/metropolitan-district-council/wolverhampton","Amazon EU","49.91","Safeguarding Admin Resource","5969","Equipment - Purchase","12/11/2015"
"Wolverhampton City Council","http://opendatacommunities.org/id/metropolitan-district-council/wolverhampton","SAIN WEDNESFIELD","100","Duke Street Bungalows","6011","Client Transport","12/11/2015"
"Wolverhampton City Council","http://opendatacommunities.org/id/metropolitan-district-council/wolverhampton","SAIN WEDNESFIELD","100","Duke Street Bungalows","6011","Room Hire","12/11/2015"
"Wolverhampton City Council","http://opendatacommunities.org/id/metropolitan-district-council/wolverhampton","BERWICK CARE EQUIPMENT","1666.67","46a, Second Avenue, Low Hill","5047","Services - Professional Fees","12/11/2015"
"Wolverhampton City Council","http://opendatacommunities.org/id/metropolitan-district-council/wolverhampton","SAIN WEDNESFIELD","100","Duke Street Bungalows","6011","Room Hire","12/11/2015"
"Wolverhampton City Council","http://opendatacommunities.org/id/metropolitan-district-council/wolverhampton","SCREWFIX DIRECT","19.99","Cleaning of Buildings - General","5211","Materials","12/11/2015"
"Wolverhampton City Council","http://opendatacommunities.org/id/metropolitan-district-council/wolverhampton","WM MORRISONS","46.92","Priory Green - CIN SWU S17","5411","Provisions (Not for resale)","12/11/2015"
"Wolverhampton City Council","http://opendatacommunities.org/id/metropolitan-district-council/wolverhampton","FACEBOOK 3A36W7NB92","575.38","Communications & Marketing - General","7311","Marketing \ Non-staff advertising","12/11/2015"
"Wolverhampton City Council","http://opendatacommunities.org/id/metropolitan-district-council/wolverhampton","GRO HM PASSPORT OFFICE","23.4","Alfred Squire - CIN SWU S17","9399","Services - Fees and Charges","12/11/2015"
"Wolverhampton City Council","http://opendatacommunities.org/id/metropolitan-district-council/wolverhampton","CARE SHOP","184.71","Specialist Support Service - North","5999","Cleaning Supplies and Materials","12/11/2015"
"Wolverhampton City Council","http://opendatacommunities.org/id/metropolitan-district-council/wolverhampton","SAINSBURYS 2040","47.05","Children & Young People Support Costs","5411","Provisions (Not for resale)","12/11/2015"
"Wolverhampton City Council","http://opendatacommunities.org/id/metropolitan-district-council/wolverhampton","WWW.THELIGHTBULBSHOP.C","217.1","Maintenance of Exhibits","5722","Equipment - Purchase","12/11/2015"
"Wolverhampton City Council","http://opendatacommunities.org/id/metropolitan-district-council/wolverhampton","IKEA","42.17","Bilston Museum","5719","Equipment - Purchase","12/11/2015"
"Wolverhampton City Council","http://opendatacommunities.org/id/metropolitan-district-council/wolverhampton","OFFICE DEPOT","329.61","Global Budgets","5111","Stationery","12/11/2015"
"Wolverhampton City Council","http://opendatacommunities.org/id/metropolitan-district-council/wolverhampton","SAIN WEDNESFIELD","100","Duke Street Bungalows","6011","Room Hire","12/11/2015"
"Wolverhampton City Council","http://opendatacommunities.org/id/metropolitan-district-council/wolverhampton","NATWEST BANK","100","Youth Service - General","6011","Provisions (Not for resale)","12/11/2015"
"Wolverhampton City Council","http://opendatacommunities.org/id/metropolitan-district-council/wolverhampton","HMCOURTS-SERVICE.G","1452","Revenues","9222","Services - Fees and Charges","12/11/2015"
"Wolverhampton City Council","http://opendatacommunities.org/id/metropolitan-district-council/wolverhampton","POST OFFICE COUNTER","2.05","Bilston Museum","9402","Comms - Postage","12/11/2015"
"Wolverhampton City Council","http://opendatacommunities.org/id/metropolitan-district-council/wolverhampton","FACEBOOK 4A36W7NB92","25.07","Communications & Marketing - General","7311","Marketing \ Non-staff advertising","12/11/2015"
"Wolverhampton City Council","http://opendatacommunities.org/id/metropolitan-district-council/wolverhampton","OFFICE DEPOT","10.94","Specialist Support Service - North","5111","Stationery","12/11/2015"
"Wolverhampton City Council","http://opendatacommunities.org/id/metropolitan-district-council/wolverhampton","HMCOURTS-SERVICE.G","312","Revenues","9222","Services - Fees and Charges","12/11/2015"
"Wolverhampton City Council","http://opendatacommunities.org/id/metropolitan-district-council/wolverhampton","TIMPSON LTD","15","Mayoral Expenses","7251","Fixtures and Fittings - Purchases","12/11/2015"
"Wolverhampton City Council","http://opendatacommunities.org/id/metropolitan-district-council/wolverhampton","Virgintrains.co.uk","102.6","Democratic Support","4112","Public Transport","12/11/2015"
"Wolverhampton City Council","http://opendatacommunities.org/id/metropolitan-district-council/wolverhampton","THE POST OFFICE","220","Traffic Signals","9402","Computing - Purchase of Hardware","12/11/2015"
"Wolverhampton City Council","http://opendatacommunities.org/id/metropolitan-district-council/wolverhampton","TRAINLINE","25.45","Alfred Squire - CIN SWU S17","4112","Public Transport","12/11/2015"
"Wolverhampton City Council","http://opendatacommunities.org/id/metropolitan-district-council/wolverhampton","CUMMINGS BROTHERS LOCK","22.08","Caretakers Community Centre","7399","Equipment - Purchase","12/10/2015"
"Wolverhampton City Council","http://opendatacommunities.org/id/metropolitan-district-council/wolverhampton","BLAS AR FWYD CYF","217.83","Towers Outdoor Education Centre","5812","Provisions (Not for resale)","12/10/2015"
"Wolverhampton City Council","http://opendatacommunities.org/id/metropolitan-district-council/wolverhampton","WHSMITH.CO.UK","42.74","Direct Delivery Team ( L.& D.)","5965","Equipment - Purchase","12/10/2015"
"Wolverhampton City Council","http://opendatacommunities.org/id/metropolitan-district-council/wolverhampton","MCDONALDS","13.98","Headstart","5814","Educ Trips, Holidays, Outings, Activity","12/10/2015"
"Wolverhampton City Council","http://opendatacommunities.org/id/metropolitan-district-council/wolverhampton","POST OFFICE COUNTER","63","MAST 7 - Berrybrook","9402","Comms - Postage","12/10/2015"
"Wolverhampton City Council","http://opendatacommunities.org/id/metropolitan-district-council/wolverhampton","Amazon EU","11.89","Global Budgets","5969","Books","12/10/2015"
"Wolverhampton City Council","http://opendatacommunities.org/id/metropolitan-district-council/wolverhampton","ASDA  STORES 5011","33.48","Cemeteries","5411","Provisions (Not for resale)","12/10/2015"
"Wolverhampton City Council","http://opendatacommunities.org/id/metropolitan-district-council/wolverhampton","TELFORD TRUSTEE NO1 AN","1.33","Cemeteries","7523","Car Allowances","12/10/2015"
"Wolverhampton City Council","http://opendatacommunities.org/id/metropolitan-district-council/wolverhampton","WILKO.COM","152.9","Public Health Management Support","5722","Equipment - Purchase","12/10/2015"
"Wolverhampton City Council","http://opendatacommunities.org/id/metropolitan-district-council/wolverhampton","ARGOS RETAIL GROUP","133.94","CIN - Bilston CC2 - Area 2","5310","Equipment - Purchase","12/10/2015"
"Wolverhampton City Council","http://opendatacommunities.org/id/metropolitan-district-council/wolverhampton","O E METCALFE","595.86","Towers Outdoor Education Centre","5499","Catering","12/10/2015"
"Wolverhampton City Council","http://opendatacommunities.org/id/metropolitan-district-council/wolverhampton","WILKO RETAIL LIMIT","26.79","Cemeteries","5722","Equipment - Purchase","12/10/2015"
"Wolverhampton City Council","http://opendatacommunities.org/id/metropolitan-district-council/wolverhampton","REGISTRARS OFFICE","26","Legal Services","8299","Training Expenses","12/10/2015"
"Wolverhampton City Council","http://opendatacommunities.org/id/metropolitan-district-council/wolverhampton","OFFICE DEPOT","13.8","Civic Halls Non Direct Management A/C","5111","Stationery","12/10/2015"
"Wolverhampton City Council","http://opendatacommunities.org/id/metropolitan-district-council/wolverhampton","POST OFFICE COUNTER","3.46","Community Enablement","9402","Comms - Postage","12/10/2015"
"Wolverhampton City Council","http://opendatacommunities.org/id/metropolitan-district-council/wolverhampton","POUND ZONE","5","Adoption and Residence Team & Allowances","5310","Hospitality","12/10/2015"
"Wolverhampton City Council","http://opendatacommunities.org/id/metropolitan-district-council/wolverhampton","OFFICE DEPOT","130.44","CIN - Dove CC - Area 6","5111","Stationery","12/10/2015"
"Wolverhampton City Council","http://opendatacommunities.org/id/metropolitan-district-council/wolverhampton","OFFICE DEPOT","5.55","Direct Payments","5111","Stationery","12/10/2015"
"Wolverhampton City Council","http://opendatacommunities.org/id/metropolitan-district-council/wolverhampton","SCREWFIX DIRECT","30","Children's Village Children Centre","5211","Equipment - Purchase","12/10/2015"
"Wolverhampton City Council","http://opendatacommunities.org/id/metropolitan-district-council/wolverhampton","WILKO RETAIL LIMIT","26.67","Central Costs","5722","Computing - Consumables","12/10/2015"
"Wolverhampton City Council","http://opendatacommunities.org/id/metropolitan-district-council/wolverhampton","THE RANGE","32.41","Specialist Support Service - North","5311","Materials","12/10/2015"
"Wolverhampton City Council","http://opendatacommunities.org/id/metropolitan-district-council/wolverhampton","POUNDLAND LTD 1463","5","Mayoral Expenses","5310","Hospitality","12/10/2015"
"Wolverhampton City Council","http://opendatacommunities.org/id/metropolitan-district-council/wolverhampton","B & Q","19.93","Caretakers Community Centre","5211","Equipment - Purchase","12/10/2015"
"Wolverhampton City Council","http://opendatacommunities.org/id/metropolitan-district-council/wolverhampton","MAPLIN WOLVERHAMPT WV1","339.87","College of Further Education","5732","Computing - Purchase of Hardware","12/10/2015"
"Wolverhampton City Council","http://opendatacommunities.org/id/metropolitan-district-council/wolverhampton","TESCO STORES 6727","1.93","Youth Offending Team","5411","Provisions (Not for resale)","12/10/2015"
"Wolverhampton City Council","http://opendatacommunities.org/id/metropolitan-district-council/wolverhampton","SPAR SIOP TANDDERWEN","474.85","Towers Outdoor Education Centre","5411","Provisions (Not for resale)","12/10/2015"
"Wolverhampton City Council","http://opendatacommunities.org/id/metropolitan-district-council/wolverhampton","SALFORD PROFESSIONAL D","358.8","Pupil Premium","8299","Training Expenses","12/10/2015"
"Wolverhampton City Council","http://opendatacommunities.org/id/metropolitan-district-council/wolverhampton","Amazon UK Marketplace","-7.99","Legal Services","5999","Stationery","12/10/2015"
"Wolverhampton City Council","http://opendatacommunities.org/id/metropolitan-district-council/wolverhampton","TVLICENSING.CO.UK","145.5","Civic Centre","7392","Services - General Licences","12/10/2015"
"Wolverhampton City Council","http://opendatacommunities.org/id/metropolitan-district-council/wolverhampton","TRAINLINE","69.36","LAC Transitions Team","4112","Public Transport","12/10/2015"
"Wolverhampton City Council","http://opendatacommunities.org/id/metropolitan-district-council/wolverhampton","ARGOS RETAIL GROUP","-2.99","LAC Admin Team","5310","Equipment - Purchase","12/10/2015"
"Wolverhampton City Council","http://opendatacommunities.org/id/metropolitan-district-council/wolverhampton","FSA RECORDS","12","Legal Services","9399","Services - Fees and Charges","12/10/2015"
"Wolverhampton City Council","http://opendatacommunities.org/id/metropolitan-district-council/wolverhampton","SAINSBURYS SACAT (2340","1","Civic Centre Catering","5411","Provisions (Not for resale)","12/10/2015"
"Wolverhampton City Council","http://opendatacommunities.org/id/metropolitan-district-council/wolverhampton","Amazon EU","11","Global Budgets","5969","Books","12/10/2015"
"Wolverhampton City Council","http://opendatacommunities.org/id/metropolitan-district-council/wolverhampton","OFFICE DEPOT","9.2","Towers Outdoor Education Centre","5111","Stationery","12/10/2015"
"Wolverhampton City Council","http://opendatacommunities.org/id/metropolitan-district-council/wolverhampton","CENTURY ELECTRICAL WHO","42","Public Conveniences","5065","Equipment - Purchase","12/10/2015"
"Wolverhampton City Council","http://opendatacommunities.org/id/metropolitan-district-council/wolverhampton","Virgintrains.co.uk","154.5","Members Expenses","4112","Public Transport","12/9/2015"
"Wolverhampton City Council","http://opendatacommunities.org/id/metropolitan-district-council/wolverhampton","FTPE WEBTIS 1","31.7","LAC Transitions Team","4112","Public Transport","12/9/2015"
"Wolverhampton City Council","http://opendatacommunities.org/id/metropolitan-district-council/wolverhampton","LATIFS BILSTON","62.95","LAC Transitions Team","5310","Equipment - Purchase","12/9/2015"
"Wolverhampton City Council","http://opendatacommunities.org/id/metropolitan-district-council/wolverhampton","CARD FACTORY","15.03","Looked After Team 1","5947","Financial Assistance In Exceptional Circ","12/9/2015"
"Wolverhampton City Council","http://opendatacommunities.org/id/metropolitan-district-council/wolverhampton","TRAINLINE","145.04","Looked After Team 1","4112","Public Transport","12/9/2015"
"Wolverhampton City Council","http://opendatacommunities.org/id/metropolitan-district-council/wolverhampton","ASDA SUPERSTORE","29.23","Swan Bank","5411","Provisions (Not for resale)","12/9/2015"
"Wolverhampton City Council","http://opendatacommunities.org/id/metropolitan-district-council/wolverhampton","TVLICENSING.CO.UK","145.5","LAC Transitions Team","7392","Client Allowances","12/9/2015"
"Wolverhampton City Council","http://opendatacommunities.org/id/metropolitan-district-council/wolverhampton","THE COAL AUTHORITY","156","Statutory Services (10RM)","9399","Services - Professional Fees","12/9/2015"
"Wolverhampton City Council","http://opendatacommunities.org/id/metropolitan-district-council/wolverhampton","CURRYS ONLINE","83.32","Bilston Museum","5732","Equipment - Purchase","12/9/2015"
"Wolverhampton City Council","http://opendatacommunities.org/id/metropolitan-district-council/wolverhampton","SYKES COTTAGES","1428.67","Valley Park - CIN SWU S17","5999","Equipment - Purchase","12/9/2015"
"Wolverhampton City Council","http://opendatacommunities.org/id/metropolitan-district-council/wolverhampton","TRAINLINE","188.19","CIN - Bilston CC1 - Area 2","4112","Public Transport","12/9/2015"
"Wolverhampton City Council","http://opendatacommunities.org/id/metropolitan-district-council/wolverhampton","SAINSBURYS (2340)","27.6","Mayoral Expenses","5411","Hospitality","12/9/2015"
"Wolverhampton City Council","http://opendatacommunities.org/id/metropolitan-district-council/wolverhampton","ASDA HOME SHOPPING","-2.97","Ernest Bold Court","5411","Provisions (Not for resale)","12/9/2015"
"Wolverhampton City Council","http://opendatacommunities.org/id/metropolitan-district-council/wolverhampton","ARGOS RETAIL GROUP","262.49","LAC Transitions Team","5310","Equipment - Purchase","12/9/2015"
"Wolverhampton City Council","http://opendatacommunities.org/id/metropolitan-district-council/wolverhampton","ARGOS RETAIL GROUP","74.99","LAC Transitions Team","5310","Equipment - Purchase","12/9/2015"
"Wolverhampton City Council","http://opendatacommunities.org/id/metropolitan-district-council/wolverhampton","TESCO STORES 5194","40.87","Towers Outdoor Education Centre","5411","Provisions (Not for resale)","12/9/2015"
"Wolverhampton City Council","http://opendatacommunities.org/id/metropolitan-district-council/wolverhampton","HOMEBASE LTD 103","6.64","Bradley Resource Centre","5211","Materials","12/9/2015"
"Wolverhampton City Council","http://opendatacommunities.org/id/metropolitan-district-council/wolverhampton","TAHDAH VERIFIED","80","Towers Outdoor Education Centre","5734","Computing - Purchase of Software","12/9/2015"
"Wolverhampton City Council","http://opendatacommunities.org/id/metropolitan-district-council/wolverhampton","OFFICE DEPOT","224.65","Towers Outdoor Education Centre","5111","Equipment - Purchase","12/9/2015"
"Wolverhampton City Council","http://opendatacommunities.org/id/metropolitan-district-council/wolverhampton","TRAINLINE","87.21","Black Art Movement","4112","Public Transport","12/9/2015"
"Wolverhampton City Council","http://opendatacommunities.org/id/metropolitan-district-council/wolverhampton","HMCOURTS-SERVICE.G","20","Mental Health Assessment & Care Mgmt","9222","Services - Fees and Charges","12/9/2015"
"Wolverhampton City Council","http://opendatacommunities.org/id/metropolitan-district-council/wolverhampton","REGISTRARS OFFICE","52","Head of Service - CINCP","8299","Services - Professional Fees","12/9/2015"
"Wolverhampton City Council","http://opendatacommunities.org/id/metropolitan-district-council/wolverhampton","HOMEBASE LTD 103","-6.64","Bradley Resource Centre","5211","Materials","12/9/2015"
"Wolverhampton City Council","http://opendatacommunities.org/id/metropolitan-district-council/wolverhampton","HOMEZONE","293.58","LAC Transitions Team","5211","Materials","12/9/2015"
"Wolverhampton City Council","http://opendatacommunities.org/id/metropolitan-district-council/wolverhampton","ASDA HOME SHOPPING","63.42","Ernest Bold Court","5411","Provisions (Not for resale)","12/9/2015"
"Wolverhampton City Council","http://opendatacommunities.org/id/metropolitan-district-council/wolverhampton","TRAVELODGE","112","Looked After Team 1","3615","Services - Supplies & Services to users","12/9/2015"
"Wolverhampton City Council","http://opendatacommunities.org/id/metropolitan-district-council/wolverhampton","HSBC INVOICE FINAN","335.44","Towers Outdoor Education Centre","6012","Laundry Expenses","12/8/2015"
"Wolverhampton City Council","http://opendatacommunities.org/id/metropolitan-district-council/wolverhampton","COTSWOLD OUTDOOR-MAIL","368.67","Towers Outdoor Education Centre","5691","Equipment - Purchase","12/8/2015"
"Wolverhampton City Council","http://opendatacommunities.org/id/metropolitan-district-council/wolverhampton","CT WOLVERHAMPTON","62.5","Berries - CIN SWU S17","8398","Services - Supplies & Services to users","12/8/2015"
"Wolverhampton City Council","http://opendatacommunities.org/id/metropolitan-district-council/wolverhampton","HN NUTTALL LTD","504.42","Towers Outdoor Education Centre","5085","Catering","12/8/2015"
"Wolverhampton City Council","http://opendatacommunities.org/id/metropolitan-district-council/wolverhampton","ASDA SUPERSTORE","1.38","Civic Centre Catering","5411","Provisions (Not for resale)","12/8/2015"
"Wolverhampton City Council","http://opendatacommunities.org/id/metropolitan-district-council/wolverhampton","THE SPRINGHILL","141.95","Parent / Partnership Service","5812","Subsistence","12/8/2015"
"Wolverhampton City Council","http://opendatacommunities.org/id/metropolitan-district-council/wolverhampton","WIX.COM","46.57","Technical Support","5734","Computing - Purchase of Software","12/8/2015"
"Wolverhampton City Council","http://opendatacommunities.org/id/metropolitan-district-council/wolverhampton","B&M RETAIL LTD","3.49","Swan Bank","5310","Equipment - Purchase","12/8/2015"
"Wolverhampton City Council","http://opendatacommunities.org/id/metropolitan-district-council/wolverhampton","RICHARD WILLIAMS","5.61","Towers Outdoor Education Centre","5211","Fixtures and Fittings - Purchases","12/8/2015"
"Wolverhampton City Council","http://opendatacommunities.org/id/metropolitan-district-council/wolverhampton","TESCO PFS 2185","20","Avenues - CIN SWU S17","5541","Petrol","12/8/2015"
"Wolverhampton City Council","http://opendatacommunities.org/id/metropolitan-district-council/wolverhampton","WWW.PRINTED4U.CO.U","427.35","Technical Support","5943","Stationery","12/8/2015"
"Wolverhampton City Council","http://opendatacommunities.org/id/metropolitan-district-council/wolverhampton","Wix.com","46.57","Technical Support","5817","Computing - Purchase of Software","12/8/2015"
"Wolverhampton City Council","http://opendatacommunities.org/id/metropolitan-district-council/wolverhampton","WESTON SAWMILLS","100","Cemeteries","5261","Equipment - Purchase","12/8/2015"
"Wolverhampton City Council","http://opendatacommunities.org/id/metropolitan-district-council/wolverhampton","FUEL CARD SERVICES LTD","410.17","Towers Outdoor Education Centre","7399","Petrol","12/8/2015"
"Wolverhampton City Council","http://opendatacommunities.org/id/metropolitan-district-council/wolverhampton","TESCO STORES 3414","5.06","Mayoral Expenses","5411","Hospitality","12/8/2015"
"Wolverhampton City Council","http://opendatacommunities.org/id/metropolitan-district-council/wolverhampton","ASDA SUPERSTORE","23","Whitmore Reans - CIN SWU S17","5411","Provisions (Not for resale)","12/8/2015"
"Wolverhampton City Council","http://opendatacommunities.org/id/metropolitan-district-council/wolverhampton","CHEMSOL CYMRU LTD","426.35","Towers Outdoor Education Centre","5199","Fixtures and Fittings - Purchases","12/8/2015"
"Wolverhampton City Council","http://opendatacommunities.org/id/metropolitan-district-council/wolverhampton","NORTHERN POTTERY & LIN","50.84","Towers Outdoor Education Centre","5099","Fixtures and Fittings - Purchases","12/8/2015"
"Wolverhampton City Council","http://opendatacommunities.org/id/metropolitan-district-council/wolverhampton","CENTRO","667","Business Manager - Place","9399","Services - Fees and Charges","12/8/2015"
"Wolverhampton City Council","http://opendatacommunities.org/id/metropolitan-district-council/wolverhampton","ASDA HOME SHOPPING","-0.91","Upper Pendeford Farm Childrens Home","5411","Provisions (Not for resale)","12/8/2015"
"Wolverhampton City Council","http://opendatacommunities.org/id/metropolitan-district-council/wolverhampton","GAME RETAIL LTD WOLVER","27.49","Youth Service - General","5945","Equipment - Purchase","12/8/2015"
"Wolverhampton City Council","http://opendatacommunities.org/id/metropolitan-district-council/wolverhampton","HARLECH FOODSERVICE LT","267.14","Towers Outdoor Education Centre","5422","Catering","12/8/2015"
"Wolverhampton City Council","http://opendatacommunities.org/id/metropolitan-district-council/wolverhampton","G & M HALE LTD","169.4","College of Further Education","5992","Equipment - Purchase","12/8/2015"
"Wolverhampton City Council","http://opendatacommunities.org/id/metropolitan-district-council/wolverhampton","KENT & SUSSEX VEND","103.9","Specialist Support Service - North","5499","Provisions (Not for resale)","12/8/2015"
"Wolverhampton City Council","http://opendatacommunities.org/id/metropolitan-district-council/wolverhampton","B&M RETAIL LTD","22.47","Ernest Bold Court","5310","Equipment - Purchase","12/8/2015"
"Wolverhampton City Council","http://opendatacommunities.org/id/metropolitan-district-council/wolverhampton","WM MORRISONS","55.08","Safeguarding Admin Resource","5411","Provisions (Not for resale)","12/8/2015"
"Wolverhampton City Council","http://opendatacommunities.org/id/metropolitan-district-council/wolverhampton","C L JONES LIMITED","236.58","Towers Outdoor Education Centre","5211","Materials","12/8/2015"
"Wolverhampton City Council","http://opendatacommunities.org/id/metropolitan-district-council/wolverhampton","B&M RETAIL","13.31","Learning Disabilities Management","5310","Equipment - Purchase","12/8/2015"
"Wolverhampton City Council","http://opendatacommunities.org/id/metropolitan-district-council/wolverhampton","ASDA SUPERSTORE","-12","Whitmore Reans - CIN SWU S17","5411","Provisions (Not for resale)","12/8/2015"
"Wolverhampton City Council","http://opendatacommunities.org/id/metropolitan-district-council/wolverhampton","SAINSBURYS (2340)","33.95","Discretionary Fund","5411","Provisions (Not for resale)","12/8/2015"
"Wolverhampton City Council","http://opendatacommunities.org/id/metropolitan-district-council/wolverhampton","ASDA HOME SHOPPING","223.83","Upper Pendeford Farm Childrens Home","5411","Provisions (Not for resale)","12/8/2015"
"Wolverhampton City Council","http://opendatacommunities.org/id/metropolitan-district-council/wolverhampton","G & M HALE (SUNDRIES)","15.1","Creative Studies Delivery Area","5992","Materials for resale","12/8/2015"
"Wolverhampton City Council","http://opendatacommunities.org/id/metropolitan-district-council/wolverhampton","WIX.COM","46.57","Technical Support","5734","Computing - Purchase of Software","12/8/2015"
"Wolverhampton City Council","http://opendatacommunities.org/id/metropolitan-district-council/wolverhampton","G & M HALE (SUNDRIES)","41.45","Discretionary Fund","5992","Materials","12/8/2015"
"Wolverhampton City Council","http://opendatacommunities.org/id/metropolitan-district-council/wolverhampton","TRAINLINE","194.31","Customer Services","4112","Public Transport","12/8/2015"
"Wolverhampton City Council","http://opendatacommunities.org/id/metropolitan-district-council/wolverhampton","Virgintrains.co.uk","252","Looked After Team 1","4112","Public Transport","12/8/2015"
"Wolverhampton City Council","http://opendatacommunities.org/id/metropolitan-district-council/wolverhampton","Virgintrains.co.uk","34.1","Members Expenses","4112","Public Transport","12/8/2015"
"Wolverhampton City Council","http://opendatacommunities.org/id/metropolitan-district-council/wolverhampton","ASDA SUPERSTORE","19.17","Avenues - CIN SWU S17","5411","Provisions (Not for resale)","12/8/2015"
"Wolverhampton City Council","http://opendatacommunities.org/id/metropolitan-district-council/wolverhampton","ASDA SUPERSTORE","13.5","Whitmore Reans - CIN SWU S17","5411","Provisions (Not for resale)","12/8/2015"
"Wolverhampton City Council","http://opendatacommunities.org/id/metropolitan-district-council/wolverhampton","CIEH","380","Food Hygiene Courses","8699","Training Expenses","12/8/2015"
"Wolverhampton City Council","http://opendatacommunities.org/id/metropolitan-district-council/wolverhampton","ASDA SUPERSTORE","-8","Whitmore Reans - CIN SWU S17","5411","Provisions (Not for resale)","12/8/2015"
"Wolverhampton City Council","http://opendatacommunities.org/id/metropolitan-district-council/wolverhampton","SCREWFIX DIRECT","209.8","Independent Living Service","5211","Materials","12/8/2015"
"Wolverhampton City Council","http://opendatacommunities.org/id/metropolitan-district-council/wolverhampton","CYNGOR GWYNEDD","407.2","Towers Outdoor Education Centre","9399","Equipment - Purchase","12/8/2015"
"Wolverhampton City Council","http://opendatacommunities.org/id/metropolitan-district-council/wolverhampton","FACEBOOK V226W7NB92","23.42","Communications & Marketing - General","7311","Marketing \ Non-staff advertising","12/7/2015"
"Wolverhampton City Council","http://opendatacommunities.org/id/metropolitan-district-council/wolverhampton","ASDA SUPERSTORE","100","Valley Park - CIN SWU S17","5411","Provisions (Not for resale)","12/7/2015"
"Wolverhampton City Council","http://opendatacommunities.org/id/metropolitan-district-council/wolverhampton","OFFICE DEPOT","2.32","Welfare Rights","5111","Stationery","12/7/2015"
"Wolverhampton City Council","http://opendatacommunities.org/id/metropolitan-district-council/wolverhampton","Amazon UK Marketplace","43.29","College of Further Education","5942","Computing - Consumables","12/7/2015"
"Wolverhampton City Council","http://opendatacommunities.org/id/metropolitan-district-council/wolverhampton","TESCO STORE 3414","20","Parking Enforcement","5411","Provisions (Not for resale)","12/7/2015"
"Wolverhampton City Council","http://opendatacommunities.org/id/metropolitan-district-council/wolverhampton","ARGOS RETAIL GROUP","-28.32","LAC Admin Team","5310","Equipment - Purchase","12/7/2015"
"Wolverhampton City Council","http://opendatacommunities.org/id/metropolitan-district-council/wolverhampton","ASDA HOME SHOPPING","52.72","Swan Bank","5411","Provisions (Not for resale)","12/7/2015"
"Wolverhampton City Council","http://opendatacommunities.org/id/metropolitan-district-council/wolverhampton","ITUNES.COM/BILL","33.17","Learning Technologies","5735","Computing - Purchase of Software","12/7/2015"
"Wolverhampton City Council","http://opendatacommunities.org/id/metropolitan-district-council/wolverhampton","CT WOLVERHAMPTON","62.5","Valley Park - CIN SWU S17","8398","Furniture","12/7/2015"
"Wolverhampton City Council","http://opendatacommunities.org/id/metropolitan-district-council/wolverhampton","BT PAY BY PHONE","75.56","Makers Dozen","4814","Comms - Telephone Call charges","12/7/2015"
"Wolverhampton City Council","http://opendatacommunities.org/id/metropolitan-district-council/wolverhampton","ASDA HOME SHOPPING","72.08","Ernest Bold Court","5411","Provisions (Not for resale)","12/7/2015"
"Wolverhampton City Council","http://opendatacommunities.org/id/metropolitan-district-council/wolverhampton","Amazon UK Marketplace","5.79","Global Budgets","5942","Books","12/7/2015"
"Wolverhampton City Council","http://opendatacommunities.org/id/metropolitan-district-council/wolverhampton","WWW.TOOLSTATION.COM","171.72","Youth Offending Team","5251","Equipment - Purchase","12/7/2015"
"Wolverhampton City Council","http://opendatacommunities.org/id/metropolitan-district-council/wolverhampton","NETWORK WEST MIDLANDS","51.5","MAST 7 - Berrybrook","9399","Services - Fees and Charges","12/7/2015"
"Wolverhampton City Council","http://opendatacommunities.org/id/metropolitan-district-council/wolverhampton","ARGOS LTD","39.57","College of Further Education","5310","Equipment - Purchase","12/7/2015"
"Wolverhampton City Council","http://opendatacommunities.org/id/metropolitan-district-council/wolverhampton","ARGOS RETAIL GROUP","9.99","LAC Admin Team","5310","Equipment - Purchase","12/7/2015"
"Wolverhampton City Council","http://opendatacommunities.org/id/metropolitan-district-council/wolverhampton","OFFICE DEPOT","6.31","Bert Williams Leisure Centre","5111","Stationery","12/7/2015"
"Wolverhampton City Council","http://opendatacommunities.org/id/metropolitan-district-council/wolverhampton","Amazon UK Marketplace","90.12","College of Further Education","5942","Computing - Consumables","12/7/2015"
"Wolverhampton City Council","http://opendatacommunities.org/id/metropolitan-district-council/wolverhampton","OFFICE DEPOT","0.81","Commissioning Disabilities","5111","Stationery","12/7/2015"
"Wolverhampton City Council","http://opendatacommunities.org/id/metropolitan-district-council/wolverhampton","BT PAY BY PHONE","92.38","Art Gallery","4814","Comms - Telephone Call charges","12/7/2015"
"Wolverhampton City Council","http://opendatacommunities.org/id/metropolitan-district-council/wolverhampton","FACEBOOK R226W7NB92","576.87","Communications & Marketing - General","7311","Marketing \ Non-staff advertising","12/7/2015"
"Wolverhampton City Council","http://opendatacommunities.org/id/metropolitan-district-council/wolverhampton","OFFICE DEPOT","0.4","Bert Williams Leisure Centre","5111","Stationery","12/7/2015"
"Wolverhampton City Council","http://opendatacommunities.org/id/metropolitan-district-council/wolverhampton","ALLPAY.NET VISA AND MA","259.05","LAC Transitions Team","8398","Services - Supplies & Services to users","12/7/2015"
"Wolverhampton City Council","http://opendatacommunities.org/id/metropolitan-district-council/wolverhampton","KENT & SUSSEX VEND","250","Specialist Support Service - North","5499","Provisions (Not for resale)","12/7/2015"
"Wolverhampton City Council","http://opendatacommunities.org/id/metropolitan-district-council/wolverhampton","ITUNES.COM/BILL","19","Learning Technologies","5735","Computing - Purchase of Software","12/7/2015"
"Wolverhampton City Council","http://opendatacommunities.org/id/metropolitan-district-council/wolverhampton","POST OFFICE COUNTER","63","MAST - Central Team","9402","Educ Trips, Holidays, Outings, Activity","12/7/2015"
"Wolverhampton City Council","http://opendatacommunities.org/id/metropolitan-district-council/wolverhampton","ARGOS RETAIL GROUP","89.18","Avenues - CIN SWU S17","5310","Financial Assistance In Exceptional Circ","12/7/2015"
"Wolverhampton City Council","http://opendatacommunities.org/id/metropolitan-district-council/wolverhampton","LUL TICKET MACHINE","12","Maintenance & Technical Materials","4112","Public Transport","12/7/2015"
"Wolverhampton City Council","http://opendatacommunities.org/id/metropolitan-district-council/wolverhampton","WAITROSE 696","2.85","Swan Bank","5411","Provisions (Not for resale)","12/7/2015"
"Wolverhampton City Council","http://opendatacommunities.org/id/metropolitan-district-council/wolverhampton","TESCO STORES 6197","32.82","Windmill Lane - Respite Home","5411","Provisions (Not for resale)","12/7/2015"
"Wolverhampton City Council","http://opendatacommunities.org/id/metropolitan-district-council/wolverhampton","ITUNES.COM/BILL","24.83","Learning Technologies","5735","Computing - Purchase of Software","12/7/2015"
"Wolverhampton City Council","http://opendatacommunities.org/id/metropolitan-district-council/wolverhampton","ASDA HOME SHOPPING","-1","Ernest Bold Court","5411","Provisions (Not for resale)","12/7/2015"
"Wolverhampton City Council","http://opendatacommunities.org/id/metropolitan-district-council/wolverhampton","ARGOS RETAIL GROUP","71.38","Alfred Squire - CIN SWU S17","5310","Financial Assistance In Exceptional Circ","12/7/2015"
"Wolverhampton City Council","http://opendatacommunities.org/id/metropolitan-district-council/wolverhampton","ASDA HOME SHOPPING","0.05","Swan Bank","5411","Provisions (Not for resale)","12/7/2015"
"Wolverhampton City Council","http://opendatacommunities.org/id/metropolitan-district-council/wolverhampton","NISA LOCAL","136","Blakenhall Commty & Healthy Living Ctr","5411","Provisions (Not for resale)","12/7/2015"
"Wolverhampton City Council","http://opendatacommunities.org/id/metropolitan-district-council/wolverhampton","ESENDEX LIMITED","30","Civic Halls Non Direct Management A/C","4814","Comms - Telephone Call charges","12/7/2015"
"Wolverhampton City Council","http://opendatacommunities.org/id/metropolitan-district-council/wolverhampton","SAINSBURYS (2340)","88.9","Mayoral Expenses","5411","Hospitality","12/7/2015"
"Wolverhampton City Council","http://opendatacommunities.org/id/metropolitan-district-council/wolverhampton","ITUNES.COM/BILL","33.17","Learning Technologies","5735","Computing - Purchase of Software","12/7/2015"
"Wolverhampton City Council","http://opendatacommunities.org/id/metropolitan-district-council/wolverhampton","Q-SYSTEMS LIMITED","36","Catering Overhead Account","5999","Equipment - R & M","12/7/2015"
"Wolverhampton City Council","http://opendatacommunities.org/id/metropolitan-district-council/wolverhampton","ITUNES.COM/BILL","33.17","Learning Technologies","5735","Computing - Purchase of Software","12/7/2015"
"Wolverhampton City Council","http://opendatacommunities.org/id/metropolitan-district-council/wolverhampton","ALLPAY.NET VISA AND MA","259.05","LAC Transitions Team","8398","Services - Supplies & Services to users","12/7/2015"
"Wolverhampton City Council","http://opendatacommunities.org/id/metropolitan-district-council/wolverhampton","CODSALL AND WERGS GARD","12.47","Duke Street Bungalows","5261","Equipment - R & M","12/7/2015"
"Wolverhampton City Council","http://opendatacommunities.org/id/metropolitan-district-council/wolverhampton","TRAINLINE","63.85","Safeguarding Admin Resource","4112","Public Transport","12/7/2015"
"Wolverhampton City Council","http://opendatacommunities.org/id/metropolitan-district-council/wolverhampton","ITUNES.COM/BILL","33.17","Learning Technologies","5735","Computing - Purchase of Software","12/7/2015"
"Wolverhampton City Council","http://opendatacommunities.org/id/metropolitan-district-council/wolverhampton","WWW.VMSECURE.CO.UK","101.5","Technical Support","5046","Clothing / Uniforms","12/7/2015"
"Wolverhampton City Council","http://opendatacommunities.org/id/metropolitan-district-council/wolverhampton","Amazon UK Marketplace","24.99","College of Further Education","5942","Computing - Consumables","12/7/2015"
"Wolverhampton City Council","http://opendatacommunities.org/id/metropolitan-district-council/wolverhampton","ASDA HOME SHOPPING","-0.41","Ernest Bold Court","5411","Provisions (Not for resale)","12/7/2015"
"Wolverhampton City Council","http://opendatacommunities.org/id/metropolitan-district-council/wolverhampton","OFFICE DEPOT","23.97","Specialist Support Service - North","5111","Stationery","12/7/2015"
"Wolverhampton City Council","http://opendatacommunities.org/id/metropolitan-district-council/wolverhampton","DISCOUNT DISPLAYS LTD","63.6","Cafe","5999","Equipment - Purchase","12/7/2015"
"Wolverhampton City Council","http://opendatacommunities.org/id/metropolitan-district-council/wolverhampton","ITUNES.COM/BILL","12.33","Learning Technologies","5735","Computing - Purchase of Software","12/7/2015"
"Wolverhampton City Council","http://opendatacommunities.org/id/metropolitan-district-council/wolverhampton","SAINSBURYS SACAT 2040","30","Duke Street Bungalows","5411","Provisions (Not for resale)","12/7/2015"
"Wolverhampton City Council","http://opendatacommunities.org/id/metropolitan-district-council/wolverhampton","ITUNES.COM/BILL","24.83","Learning Technologies","5735","Computing - Purchase of Software","12/7/2015"
"Wolverhampton City Council","http://opendatacommunities.org/id/metropolitan-district-council/wolverhampton","ITUNES.COM/BILL","66.5","Learning Technologies","5735","Computing - Purchase of Software","12/7/2015"
"Wolverhampton City Council","http://opendatacommunities.org/id/metropolitan-district-council/wolverhampton","MERCURE WOLVERHAMPTON","53.33","Emergency Duty Team","7011","Services - Supplies & Services to users","12/7/2015"
"Wolverhampton City Council","http://opendatacommunities.org/id/metropolitan-district-council/wolverhampton","NATWEST BANK","140","Children's Village Children Centre","6011","Equipment - Purchase","12/7/2015"
"Wolverhampton City Council","http://opendatacommunities.org/id/metropolitan-district-council/wolverhampton","TOOLSTATION LTD","65.95","Meals on Wheels","5251","Equipment - Purchase","12/7/2015"
"Wolverhampton City Council","http://opendatacommunities.org/id/metropolitan-district-council/wolverhampton","EE & T-MOBILE","123.71","Civic Halls Non Direct Management A/C","4814","Comms - Telephone Call charges","12/7/2015"
"Wolverhampton City Council","http://opendatacommunities.org/id/metropolitan-district-council/wolverhampton","REDWINGS LODGE","104.08","Emergency Duty Team","7011","Services - Supplies & Services to users","12/7/2015"
"Wolverhampton City Council","http://opendatacommunities.org/id/metropolitan-district-council/wolverhampton","W M MORRISONS.COM","86.01","Blakenhall Commty & Healthy Living Ctr","5411","Provisions (Not for resale)","12/7/2015"
"Wolverhampton City Council","http://opendatacommunities.org/id/metropolitan-district-council/wolverhampton","ASDA SUPERSTORE","13.5","Valley Park - CIN SWU S17","5411","No Recourse to Public Funds","12/7/2015"
"Wolverhampton City Council","http://opendatacommunities.org/id/metropolitan-district-council/wolverhampton","W M MORRISONS.COM","43.48","Blakenhall Commty & Healthy Living Ctr","5411","Provisions (Not for resale)","12/7/2015"
"Wolverhampton City Council","http://opendatacommunities.org/id/metropolitan-district-council/wolverhampton","COMBINED COURT","560","Legal Services","9222","Services - Professional Fees","12/7/2015"
"Wolverhampton City Council","http://opendatacommunities.org/id/metropolitan-district-council/wolverhampton","Amazon UK Marketplace","47.94","Customer Services","5942","Books","12/7/2015"
"Wolverhampton City Council","http://opendatacommunities.org/id/metropolitan-district-council/wolverhampton","JUST CARDS PLUS","214.89","Technical Support","5111","Printing","12/7/2015"
"Wolverhampton City Council","http://opendatacommunities.org/id/metropolitan-district-council/wolverhampton","ITUNES.COM/BILL","33.17","Learning Technologies","5735","Computing - Purchase of Software","12/7/2015"
"Wolverhampton City Council","http://opendatacommunities.org/id/metropolitan-district-council/wolverhampton","Amazon UK Marketplace","60.55","College of Further Education","5942","Computing - Consumables","12/7/2015"
"Wolverhampton City Council","http://opendatacommunities.org/id/metropolitan-district-council/wolverhampton","UPPAL SWEET CENTRE","91.5","Blakenhall Commty & Healthy Living Ctr","5813","Provisions (Resale)","12/4/2015"
"Wolverhampton City Council","http://opendatacommunities.org/id/metropolitan-district-council/wolverhampton","Amazon UK Marketplace","-8.46","CIN - Bilston CC2 - Area 2","5999","Equipment - Purchase","12/4/2015"
"Wolverhampton City Council","http://opendatacommunities.org/id/metropolitan-district-council/wolverhampton","OFFICE DEPOT","6.9","Safeguarding Admin Resource","5111","Stationery","12/4/2015"
"Wolverhampton City Council","http://opendatacommunities.org/id/metropolitan-district-council/wolverhampton","KENT & SUSSEX VEND","250","Specialist Support Service - North","5499","Provisions (Not for resale)","12/4/2015"
"Wolverhampton City Council","http://opendatacommunities.org/id/metropolitan-district-council/wolverhampton","MR MEMORY","59.98","Music Support Team","5732","Equipment - Purchase","12/4/2015"
"Wolverhampton City Council","http://opendatacommunities.org/id/metropolitan-district-council/wolverhampton","ARGOS LTD","19.99","Legal Services","5310","Stationery","12/4/2015"
"Wolverhampton City Council","http://opendatacommunities.org/id/metropolitan-district-council/wolverhampton","OFFICE DEPOT","0.12","Referral Team CIN - S17","5111","Stationery","12/4/2015"
"Wolverhampton City Council","http://opendatacommunities.org/id/metropolitan-district-council/wolverhampton","Amazon EU","203.02","Music Support Team","5969","Equipment - Purchase","12/4/2015"
"Wolverhampton City Council","http://opendatacommunities.org/id/metropolitan-district-council/wolverhampton","Virgintrains.co.uk","34","Looked After Team 1","4112","Public Transport","12/4/2015"
"Wolverhampton City Council","http://opendatacommunities.org/id/metropolitan-district-council/wolverhampton","WM MORRISON 024","34.6","Bilston Museum","5411","Provisions (Not for resale)","12/4/2015"
"Wolverhampton City Council","http://opendatacommunities.org/id/metropolitan-district-council/wolverhampton","WEST COAST TRAINS","104.95","Graiseley - CIN SWU S17","4112","Public Transport","12/4/2015"
"Wolverhampton City Council","http://opendatacommunities.org/id/metropolitan-district-council/wolverhampton","MICHAEL BACHYK","180","Catering Overhead Account","5422","Catering","12/4/2015"
"Wolverhampton City Council","http://opendatacommunities.org/id/metropolitan-district-council/wolverhampton","ARGOS LTD","117.9","Bilston 1 - CIN SWU S17","5310","Furniture","12/4/2015"
"Wolverhampton City Council","http://opendatacommunities.org/id/metropolitan-district-council/wolverhampton","WWW.SOLACE.ORG.UK","375","Delivery & OCE Development","8699","Conference Expenses","12/4/2015"
"Wolverhampton City Council","http://opendatacommunities.org/id/metropolitan-district-council/wolverhampton","MAG EVENTS","153","School Improvement","5192","Conference Expenses","12/4/2015"
"Wolverhampton City Council","http://opendatacommunities.org/id/metropolitan-district-council/wolverhampton","ARGOS LTD","98.12","Bilston 1 - CIN SWU S17","5310","Furniture","12/4/2015"
"Wolverhampton City Council","http://opendatacommunities.org/id/metropolitan-district-council/wolverhampton","OFFICE DEPOT","67.94","Referral Team CIN - S17","5111","Stationery","12/4/2015"
"Wolverhampton City Council","http://opendatacommunities.org/id/metropolitan-district-council/wolverhampton","B&M RETAIL","73.3","LAC Transitions Team","5310","Accommodation Costs","12/4/2015"
"Wolverhampton City Council","http://opendatacommunities.org/id/metropolitan-district-council/wolverhampton","OFFICE DEPOT","92.85","Civic Halls Non Direct Management A/C","5111","Stationery","12/4/2015"
"Wolverhampton City Council","http://opendatacommunities.org/id/metropolitan-district-council/wolverhampton","Virgintrains.co.uk","175","Members Expenses","4112","Public Transport","12/4/2015"
"Wolverhampton City Council","http://opendatacommunities.org/id/metropolitan-district-council/wolverhampton","OFFICE DEPOT","30.01","Swan Bank","5111","Stationery","12/4/2015"
"Wolverhampton City Council","http://opendatacommunities.org/id/metropolitan-district-council/wolverhampton","POST OFFICE COUNTER","6.45","Duke Street Bungalows","9402","Comms - Postage","12/4/2015"
"Wolverhampton City Council","http://opendatacommunities.org/id/metropolitan-district-council/wolverhampton","SUPERDRUG STORES PLC","30.43","LAC Education Team (LACE)","5912","Computing - Consumables","12/4/2015"
"Wolverhampton City Council","http://opendatacommunities.org/id/metropolitan-district-council/wolverhampton","ASDA SUPERSTORE","40.38","LAC Transitions Team","5411","Accommodation Costs","12/4/2015"
"Wolverhampton City Council","http://opendatacommunities.org/id/metropolitan-district-council/wolverhampton","ARGOS LTD","117.9","Bilston 1 - CIN SWU S17","5310","Furniture","12/4/2015"
"Wolverhampton City Council","http://opendatacommunities.org/id/metropolitan-district-council/wolverhampton","TFM FARM & COUNTRY SUP","109.47","Northicote Farm","5399","Equipment - Purchase","12/4/2015"
"Wolverhampton City Council","http://opendatacommunities.org/id/metropolitan-district-council/wolverhampton","HM PASSPORT OFFICE","49","Looked After Team 1","9399","Services - Fees and Charges","12/4/2015"
"Wolverhampton City Council","http://opendatacommunities.org/id/metropolitan-district-council/wolverhampton","ARGOS LTD","117.9","Bilston 1 - CIN SWU S17","5310","Furniture","12/4/2015"
"Wolverhampton City Council","http://opendatacommunities.org/id/metropolitan-district-council/wolverhampton","PARTONS BUILDING SUPPL","22.4","Caretakers Community Centre","5211","R&M - Departmental planned (external)","12/3/2015"
"Wolverhampton City Council","http://opendatacommunities.org/id/metropolitan-district-council/wolverhampton","WILKO RETAIL LIMIT","6.58","Connexions Contract","5722","R&M - Departmental response (external)","12/3/2015"
"Wolverhampton City Council","http://opendatacommunities.org/id/metropolitan-district-council/wolverhampton","TRAINLINE","254.49","Looked After Team 1","4112","Public Transport","12/3/2015"
"Wolverhampton City Council","http://opendatacommunities.org/id/metropolitan-district-council/wolverhampton","ASDA HOME SHOPPING","63.02","46a, Second Avenue, Low Hill","5411","Provisions (Not for resale)","12/3/2015"
"Wolverhampton City Council","http://opendatacommunities.org/id/metropolitan-district-council/wolverhampton","OFFICE DEPOT","167","Youth Offending Team","5111","Stationery","12/3/2015"
"Wolverhampton City Council","http://opendatacommunities.org/id/metropolitan-district-council/wolverhampton","TRAINLINE","63.39","Art Gallery","4112","Public Transport","12/3/2015"
"Wolverhampton City Council","http://opendatacommunities.org/id/metropolitan-district-council/wolverhampton","WWW.BAKERROSS.CO.UK","45.35","Bilston Museum","5970","Materials","12/3/2015"
"Wolverhampton City Council","http://opendatacommunities.org/id/metropolitan-district-council/wolverhampton","OFFICE DEPOT","126.44","Graiseley - CIN SWU S17","5111","Stationery","12/3/2015"
"Wolverhampton City Council","http://opendatacommunities.org/id/metropolitan-district-council/wolverhampton","NATWEST BANK","250","Valley Park - CIN SWU S17","6011","Financial Assistance In Exceptional Circ","12/3/2015"
"Wolverhampton City Council","http://opendatacommunities.org/id/metropolitan-district-council/wolverhampton","PREMIER INN 44536720","49.99","Fostering Team & Allowances","5812","Accommodation Costs","12/3/2015"
"Wolverhampton City Council","http://opendatacommunities.org/id/metropolitan-district-council/wolverhampton","PP 6336CODE","1","School Improvement","8999","Services - Professional Fees","12/3/2015"
"Wolverhampton City Council","http://opendatacommunities.org/id/metropolitan-district-council/wolverhampton","THE RANGE","115.79","Bilston Museum","5311","Equipment - Purchase","12/3/2015"
"Wolverhampton City Council","http://opendatacommunities.org/id/metropolitan-district-council/wolverhampton","ARGOS LTD","23.73","Legal Services","5310","Equipment - Purchase","12/3/2015"
"Wolverhampton City Council","http://opendatacommunities.org/id/metropolitan-district-council/wolverhampton","ASDA HOME SHOPPING","-0.64","46a, Second Avenue, Low Hill","5411","Provisions (Not for resale)","12/3/2015"
"Wolverhampton City Council","http://opendatacommunities.org/id/metropolitan-district-council/wolverhampton","NATWEST BANK","250","Valley Park - CIN SWU S17","6011","Financial Assistance In Exceptional Circ","12/3/2015"
"Wolverhampton City Council","http://opendatacommunities.org/id/metropolitan-district-council/wolverhampton","OFFICE DEPOT","4","Eastfield 2 - CIN SWU S17","5111","Stationery","12/3/2015"
"Wolverhampton City Council","http://opendatacommunities.org/id/metropolitan-district-council/wolverhampton","OFFICE DEPOT","49.35","LAC Education Team (LACE)","5111","Stationery","12/3/2015"
"Wolverhampton City Council","http://opendatacommunities.org/id/metropolitan-district-council/wolverhampton","CENTURY ELECTRICAL WHO","19.5","Caretakers Community Centre","5065","R&M - Departmental planned (external)","12/3/2015"
"Wolverhampton City Council","http://opendatacommunities.org/id/metropolitan-district-council/wolverhampton","WALSALL COUNCIL","12","Bilston 1 - CIN SWU S17","9399","Services - Fees and Charges","12/3/2015"
"Wolverhampton City Council","http://opendatacommunities.org/id/metropolitan-district-council/wolverhampton","CAPITAL APPLIANCE CTR","65","Whitmore Reans - CIN SWU S17","5722","Equipment - Purchase","12/3/2015"
"Wolverhampton City Council","http://opendatacommunities.org/id/metropolitan-district-council/wolverhampton","ONE STOP 1009","7.56","MAST 1 - Deansfield","5411","Comms - Postage","12/3/2015"
"Wolverhampton City Council","http://opendatacommunities.org/id/metropolitan-district-council/wolverhampton","HUGHES","108.32","LAC Transitions Team","5732","Accommodation Costs","12/3/2015"
"Wolverhampton City Council","http://opendatacommunities.org/id/metropolitan-district-council/wolverhampton","FTPE WEBTIS 1","31.7","LAC Transitions Team","4112","Client Transport","12/3/2015"
"Wolverhampton City Council","http://opendatacommunities.org/id/metropolitan-district-council/wolverhampton","POST OFFICE COUNTER","377.5","Legal Services","9402","Comms - Postage","12/3/2015"
"Wolverhampton City Council","http://opendatacommunities.org/id/metropolitan-district-council/wolverhampton","PENKRIDGE SST","9.5","Black Art Movement","4112","Public Transport","12/3/2015"
"Wolverhampton City Council","http://opendatacommunities.org/id/metropolitan-district-council/wolverhampton","CT WOLVERHAMPTON","62.5","Berries - CIN SWU S17","8398","Services - Supplies & Services to users","12/3/2015"
"Wolverhampton City Council","http://opendatacommunities.org/id/metropolitan-district-council/wolverhampton","BRITANNIA","32.5","Mental Health Assessment & Care Mgmt","7011","Services - Supplies & Services to users","12/3/2015"
"Wolverhampton City Council","http://opendatacommunities.org/id/metropolitan-district-council/wolverhampton","CENTURY ELECTRICAL WHO","8.75","Caretakers Community Centre","5065","R&M - Departmental planned (external)","12/3/2015"
"Wolverhampton City Council","http://opendatacommunities.org/id/metropolitan-district-council/wolverhampton","LOYD WEDNESFIELD WOLVE","250","Children's Village Children Centre","6011","Equipment - Purchase","12/3/2015"
"Wolverhampton City Council","http://opendatacommunities.org/id/metropolitan-district-council/wolverhampton","OFFICE DEPOT","40.53","Learning Disabilities Management","5111","Stationery","12/3/2015"
"Wolverhampton City Council","http://opendatacommunities.org/id/metropolitan-district-council/wolverhampton","CAPITAL APPLIANCE CTR","199","Whitmore Reans - CIN SWU S17","5722","Equipment - Purchase","12/3/2015"
"Wolverhampton City Council","http://opendatacommunities.org/id/metropolitan-district-council/wolverhampton","WM MORRISONS","48.53","Service Director City Assets","5411","Provisions (Not for resale)","12/3/2015"
"Wolverhampton City Council","http://opendatacommunities.org/id/metropolitan-district-council/wolverhampton","ASDA SUPERSTORE","30.93","LAC Transitions Team","5411","Accommodation Costs","12/3/2015"
"Wolverhampton City Council","http://opendatacommunities.org/id/metropolitan-district-council/wolverhampton","WALSALL COUNCIL","-3","Bilston 1 - CIN SWU S17","9399","Services - Fees and Charges","12/3/2015"
"Wolverhampton City Council","http://opendatacommunities.org/id/metropolitan-district-council/wolverhampton","CARE SHOP","68.62","Ernest Bold Court","5999","Cleaning Supplies and Materials","12/2/2015"
"Wolverhampton City Council","http://opendatacommunities.org/id/metropolitan-district-council/wolverhampton","ASDA HOME SHOPPING","48.07","Swan Bank","5411","Provisions (Not for resale)","12/2/2015"
"Wolverhampton City Council","http://opendatacommunities.org/id/metropolitan-district-council/wolverhampton","AUTOTIME SOLUTIONS","53.5","Passenger Transport - General","5943","Stationery","12/2/2015"
"Wolverhampton City Council","http://opendatacommunities.org/id/metropolitan-district-council/wolverhampton","WHITMORE REANS GLASS","20","Aldersley Leisure Village","5231","Equipment - Purchase","12/2/2015"
"Wolverhampton City Council","http://opendatacommunities.org/id/metropolitan-district-council/wolverhampton","WWW.ICO.GOV.UK","35","Members Expenses","9399","Subscriptions","12/2/2015"
"Wolverhampton City Council","http://opendatacommunities.org/id/metropolitan-district-council/wolverhampton","FTPE WEBTIS 1","5.4","LAC Transitions Team","4112","Public Transport","12/2/2015"
"Wolverhampton City Council","http://opendatacommunities.org/id/metropolitan-district-council/wolverhampton","ARGOS LTD","9.89","Creative Studies Delivery Area","5310","Equipment - Purchase","12/2/2015"
"Wolverhampton City Council","http://opendatacommunities.org/id/metropolitan-district-council/wolverhampton","OFFICE DEPOT","44.67","Safeguarding Admin Resource","5111","Stationery","12/2/2015"
"Wolverhampton City Council","http://opendatacommunities.org/id/metropolitan-district-council/wolverhampton","ASDA HOME SHOPPING","67.89","Ernest Bold Court","5411","Provisions (Not for resale)","12/2/2015"
"Wolverhampton City Council","http://opendatacommunities.org/id/metropolitan-district-council/wolverhampton","Amazon Svcs Europe,SAR","5.89","Global Budgets","5942","Books","12/2/2015"
"Wolverhampton City Council","http://opendatacommunities.org/id/metropolitan-district-council/wolverhampton","ALLIANCE DISPOSABLES","34.9","Blakenhall Commty & Healthy Living Ctr","5811","Catering","12/2/2015"
"Wolverhampton City Council","http://opendatacommunities.org/id/metropolitan-district-council/wolverhampton","PAYPAL  RTPI","260","Legal Services","8398","Subscriptions","12/2/2015"
"Wolverhampton City Council","http://opendatacommunities.org/id/metropolitan-district-council/wolverhampton","SCREWFIX DIRECT","154.36","College of Further Education","5211","Equipment - R & M","12/2/2015"
"Wolverhampton City Council","http://opendatacommunities.org/id/metropolitan-district-council/wolverhampton","BARCLAYS BANK PLC","250","Dove - CIN SWU S17","6011","Financial Assistance In Exceptional Circ","12/2/2015"
"Wolverhampton City Council","http://opendatacommunities.org/id/metropolitan-district-council/wolverhampton","THE HAT MAGAZINE L","52","Creative Studies Delivery Area","2741","Publications","12/2/2015"
"Wolverhampton City Council","http://opendatacommunities.org/id/metropolitan-district-council/wolverhampton","WAITROSE 696","12.75","MAST 4 - Warstones","5411","Provisions (Not for resale)","12/2/2015"
"Wolverhampton City Council","http://opendatacommunities.org/id/metropolitan-district-council/wolverhampton","TESCO STORES 5403","0.59","Swan Bank","5411","Provisions (Not for resale)","12/2/2015"
"Wolverhampton City Council","http://opendatacommunities.org/id/metropolitan-district-council/wolverhampton","Amazon EU","14.99","Global Budgets","5969","Books","12/2/2015"
"Wolverhampton City Council","http://opendatacommunities.org/id/metropolitan-district-council/wolverhampton","WWW.PROTECDIRECT.CO.UK","17.35","Central Baths","5085","Equipment - Purchase","12/2/2015"
"Wolverhampton City Council","http://opendatacommunities.org/id/metropolitan-district-council/wolverhampton","Virgintrains.co.uk","68.75","Looked After Team 1","4112","Public Transport","12/2/2015"
"Wolverhampton City Council","http://opendatacommunities.org/id/metropolitan-district-council/wolverhampton","ASDA HOME SHOPPING","-0.51","Ernest Bold Court","5411","Provisions (Not for resale)","12/2/2015"
"Wolverhampton City Council","http://opendatacommunities.org/id/metropolitan-district-council/wolverhampton","G & M HALE (SUNDRIES)","24.98","Creative Studies Delivery Area","5992","Materials for resale","12/2/2015"
"Wolverhampton City Council","http://opendatacommunities.org/id/metropolitan-district-council/wolverhampton","Amazon UK Marketplace","11.6","Legal Services","5942","Stationery","12/2/2015"
"Wolverhampton City Council","http://opendatacommunities.org/id/metropolitan-district-council/wolverhampton","ARGOS RETAIL GROUP","49.99","Upper Pendeford Farm Childrens Home","5310","Equipment - Purchase","12/2/2015"
"Wolverhampton City Council","http://opendatacommunities.org/id/metropolitan-district-council/wolverhampton","POST OFFICE COUNTER","29.25","S.A.I.F","9402","Comms - Postage","12/2/2015"
"Wolverhampton City Council","http://opendatacommunities.org/id/metropolitan-district-council/wolverhampton","TVLICENSING.CO.UK","145.5","LAC Transitions Team","7392","Services - Consultants","12/2/2015"
"Wolverhampton City Council","http://opendatacommunities.org/id/metropolitan-district-council/wolverhampton","OFFICE DEPOT","-49.35","LAC Education Team (LACE)","5111","Stationery","12/2/2015"
"Wolverhampton City Council","http://opendatacommunities.org/id/metropolitan-district-council/wolverhampton","TESCO STORES 5194","38.37","Towers Outdoor Education Centre","5411","Provisions (Not for resale)","12/2/2015"
"Wolverhampton City Council","http://opendatacommunities.org/id/metropolitan-district-council/wolverhampton","WWW.LAWNMOWERSDIRECT.","-94.99","Education Catering - General Overheads","5261","Equipment - Purchase","12/2/2015"
"Wolverhampton City Council","http://opendatacommunities.org/id/metropolitan-district-council/wolverhampton","WWW.ICO.GOV.UK","35","Members Expenses","9399","Subscriptions","12/2/2015"
"Wolverhampton City Council","http://opendatacommunities.org/id/metropolitan-district-council/wolverhampton","POST OFFICE COUNTER","6.45","Looked After Team 1","9402","Comms - Postage","12/2/2015"
"Wolverhampton City Council","http://opendatacommunities.org/id/metropolitan-district-council/wolverhampton","SALFORD PROFESSIONAL D","206","Public Health Support Costs","8299","Training Expenses","12/2/2015"
"Wolverhampton City Council","http://opendatacommunities.org/id/metropolitan-district-council/wolverhampton","HUGHES","369.17","LAC Transitions Team","5732","Equipment - Purchase","12/2/2015"
"Wolverhampton City Council","http://opendatacommunities.org/id/metropolitan-district-council/wolverhampton","RYMAN","8.29","Traffic Signals","5943","Computing - Purchase of Hardware","12/2/2015"
"Wolverhampton City Council","http://opendatacommunities.org/id/metropolitan-district-council/wolverhampton","FTPE WEBTIS 1","12.3","LAC Transitions Team","4112","Public Transport","12/2/2015"
"Wolverhampton City Council","http://opendatacommunities.org/id/metropolitan-district-council/wolverhampton","BRITANNIA","32.5","Mental Health Assessment & Care Mgmt","7011","Services - Supplies & Services to users","12/2/2015"
"Wolverhampton City Council","http://opendatacommunities.org/id/metropolitan-district-council/wolverhampton","PLUMB CENTER JC","8.6","Culwell Street Depot","1711","R&M - Departmental planned (external)","12/2/2015"
"Wolverhampton City Council","http://opendatacommunities.org/id/metropolitan-district-council/wolverhampton","Virgintrains.co.uk","151.5","HRA General","4112","Public Transport","12/2/2015"
"Wolverhampton City Council","http://opendatacommunities.org/id/metropolitan-district-council/wolverhampton","OFFICE DEPOT","2.2","Whitmore Reans - CIN SWU S17","5111","Stationery","12/2/2015"
"Wolverhampton City Council","http://opendatacommunities.org/id/metropolitan-district-council/wolverhampton","BARCLAYS BANK PLC","10","Duke Street Bungalows","6011","Room Hire","12/2/2015"
"Wolverhampton City Council","http://opendatacommunities.org/id/metropolitan-district-council/wolverhampton","ASDA SUPERSTORE","23.6","Civic Centre Catering","5411","Provisions (Not for resale)","12/2/2015"
"Wolverhampton City Council","http://opendatacommunities.org/id/metropolitan-district-council/wolverhampton","B & Q","20.25","Caretakers Community Centre","5211","R&M - Departmental planned (external)","12/2/2015"
"Wolverhampton City Council","http://opendatacommunities.org/id/metropolitan-district-council/wolverhampton","FACEBOOK KYXBF8SB92","357.41","Communications & Marketing - General","7311","Marketing \ Non-staff advertising","12/1/2015"
"Wolverhampton City Council","http://opendatacommunities.org/id/metropolitan-district-council/wolverhampton","TRAINLINE","99.5","Adoption and Residence Team & Allowances","4112","Public Transport","12/1/2015"
"Wolverhampton City Council","http://opendatacommunities.org/id/metropolitan-district-council/wolverhampton","Amazon UK Marketplace","24.74","Blakenhall Commty & Healthy Living Ctr","5942","Books","12/1/2015"
"Wolverhampton City Council","http://opendatacommunities.org/id/metropolitan-district-council/wolverhampton","PAYATRADER","120","Bilston 1 - CIN SWU S17","7399","Hire of Vehicles","12/1/2015"
"Wolverhampton City Council","http://opendatacommunities.org/id/metropolitan-district-council/wolverhampton","MICHAEL BACHYK","1115.29","Catering Overhead Account","5422","Catering","12/1/2015"
"Wolverhampton City Council","http://opendatacommunities.org/id/metropolitan-district-council/wolverhampton","ASDA HOME SHOPPING","194.02","Upper Pendeford Farm Childrens Home","5411","Provisions (Not for resale)","12/1/2015"
"Wolverhampton City Council","http://opendatacommunities.org/id/metropolitan-district-council/wolverhampton","FACEBOOK NCD5Z7JQ92","561.91","Civic Halls Non Direct Management A/C","7311","Marketing \ Non-staff advertising","12/1/2015"
"Wolverhampton City Council","http://opendatacommunities.org/id/metropolitan-district-council/wolverhampton","CENTRO HOUSE","1223.6","Banking","4112","Public Transport","12/1/2015"
"Wolverhampton City Council","http://opendatacommunities.org/id/metropolitan-district-council/wolverhampton","CENTRO HOUSE","1000","Travel Scratch Cards & Rail Warrants","4112","Public Transport","12/1/2015"
"Wolverhampton City Council","http://opendatacommunities.org/id/metropolitan-district-council/wolverhampton","CARD FACTORY","1.65","Mayoral Expenses","5947","Equipment - Purchase","12/1/2015"
"Wolverhampton City Council","http://opendatacommunities.org/id/metropolitan-district-council/wolverhampton","SAIN WEDNESFIELD","10","Duke Street Bungalows","6011","Room Hire","12/1/2015"
"Wolverhampton City Council","http://opendatacommunities.org/id/metropolitan-district-council/wolverhampton","WWW.CORAM.ORG.UK","89.33","Fostering Team & Allowances","8398","Services - Supplies & Services to users","12/1/2015"
"Wolverhampton City Council","http://opendatacommunities.org/id/metropolitan-district-council/wolverhampton","WEST COAST TRAINS","139.2","Health Protection & NHS Facing","4112","Public Transport","12/1/2015"
"Wolverhampton City Council","http://opendatacommunities.org/id/metropolitan-district-council/wolverhampton","STERMAT CAR AND VAN HI","630","Towers Outdoor Education Centre","5521","Hire of Vehicles","12/1/2015"
"Wolverhampton City Council","http://opendatacommunities.org/id/metropolitan-district-council/wolverhampton","SPECIALIST CRAFTS LTD","357.87","Education And Access","5970","Materials","12/1/2015"
"Wolverhampton City Council","http://opendatacommunities.org/id/metropolitan-district-council/wolverhampton","WWW.ICO.GOV.UK","35","Members Expenses","9399","Services - Fees and Charges","12/1/2015"
"Wolverhampton City Council","http://opendatacommunities.org/id/metropolitan-district-council/wolverhampton","RLSS UK LTD","35","WV Active Business Support","8398","Services - Professional Fees","12/1/2015"
"Wolverhampton City Council","http://opendatacommunities.org/id/metropolitan-district-council/wolverhampton","CUMMINGS BROTHERS LOCK","41.67","Aldersley Leisure Village Bar","7399","Equipment - Purchase","12/1/2015"
"Wolverhampton City Council","http://opendatacommunities.org/id/metropolitan-district-council/wolverhampton","ASDA HOME SHOPPING","-2.66","Upper Pendeford Farm Childrens Home","5411","Provisions (Not for resale)","12/1/2015"
"Wolverhampton City Council","http://opendatacommunities.org/id/metropolitan-district-council/wolverhampton","S&D SUPERMARKET WOLVER","24.78","Blakenhall Commty & Healthy Living Ctr","5411","Provisions (Not for resale)","12/1/2015"
"Wolverhampton City Council","http://opendatacommunities.org/id/metropolitan-district-council/wolverhampton","SAIN WEDNESFIELD","100","Duke Street Bungalows","6011","Room Hire","12/1/2015"
"Wolverhampton City Council","http://opendatacommunities.org/id/metropolitan-district-council/wolverhampton","G & M HALE LTD","189.9","College of Further Education","5992","Equipment - Purchase","12/1/2015"
"Wolverhampton City Council","http://opendatacommunities.org/id/metropolitan-district-council/wolverhampton","WWW.ICO.GOV.UK","35","Members Expenses","9399","Services - Fees and Charges","12/1/2015"
"Wolverhampton City Council","http://opendatacommunities.org/id/metropolitan-district-council/wolverhampton","WEST COAST TRAINS","8.1","Education And Access","4112","Public Transport","12/1/2015"
"Wolverhampton City Council","http://opendatacommunities.org/id/metropolitan-district-council/wolverhampton","WWW.ICO.GOV.UK","35","Members Expenses","9399","Services - Fees and Charges","12/1/2015"
"Wolverhampton City Council","http://opendatacommunities.org/id/metropolitan-district-council/wolverhampton","SAIN PENKRIDGE STONE C","240","Dove - CIN SWU S17","6011","Financial Assistance In Exceptional Circ","12/1/2015"
"Wolverhampton City Council","http://opendatacommunities.org/id/metropolitan-district-council/wolverhampton","G & M HALE (SUNDRIES)","29.27","Creative Studies Delivery Area","5992","Materials for resale","12/1/2015"
"Wolverhampton City Council","http://opendatacommunities.org/id/metropolitan-district-council/wolverhampton","H S HOMMERS&SONS (D B)","58.15","Northicote Farm","5261","Equipment - Purchase","12/1/2015"
"Wolverhampton City Council","http://opendatacommunities.org/id/metropolitan-district-council/wolverhampton","CUMMINGS BROTHERS LOCK","21.67","Caretakers Community Centre","7399","R&M - Departmental planned (external)","12/1/2015"
"Wolverhampton City Council","http://opendatacommunities.org/id/metropolitan-district-council/wolverhampton","Amazon UK Marketplace","4.99","Independent Living Service","5942","Computing - Purchase of Hardware","12/1/2015"
"Wolverhampton City Council","http://opendatacommunities.org/id/metropolitan-district-council/wolverhampton","B & Q","6.19","Ernest Bold Court","5211","Equipment - R & M","12/1/2015"
"Wolverhampton City Council","http://opendatacommunities.org/id/metropolitan-district-council/wolverhampton","TESCO STORES 2606","6.66","MAST 5 - Valley Park","5411","Provisions (Not for resale)","12/1/2015"
"Wolverhampton City Council","http://opendatacommunities.org/id/metropolitan-district-council/wolverhampton","SAIN WEDNESFIELD","100","Duke Street Bungalows","6011","Room Hire","12/1/2015"
"Wolverhampton City Council","http://opendatacommunities.org/id/metropolitan-district-council/wolverhampton","WWW.ICO.GOV.UK","35","Members Expenses","9399","Services - Fees and Charges","12/1/2015"
"Wolverhampton City Council","http://opendatacommunities.org/id/metropolitan-district-council/wolverhampton","SAINSBURYS 2040","25","Duke Street Bungalows","5411","Provisions (Not for resale)","12/1/2015"
"Wolverhampton City Council","http://opendatacommunities.org/id/metropolitan-district-council/wolverhampton","TRAINLINE","56.2","Adoption and Residence Team & Allowances","4112","Public Transport","12/1/2015"
"Wolverhampton City Council","http://opendatacommunities.org/id/metropolitan-district-council/wolverhampton","OFFICE DEPOT","30.8","Benefits","5111","Stationery","12/1/2015"
"Wolverhampton City Council","http://opendatacommunities.org/id/metropolitan-district-council/wolverhampton","G & M HALE (SUNDRIES)","33.58","Discretionary Fund","5992","Materials","12/1/2015"
"Wolverhampton City Council","http://opendatacommunities.org/id/metropolitan-district-council/wolverhampton","TRAINLINE","170.44","Looked After Team 1","4112","Public Transport","12/1/2015"
